{"text_format":"1","workbook":"xlsx","n_sheets":11,"sheets":["ФОРМА (договор)","ФОРМА (акт)","Договор","Прил. 1 Нагрузка","Прил 2. Согласие на размещение","Прил 3. Календ.План","Прил 4. Согласие на ОПД","АКТ","Кафедры","222","Лист1"],"not_rendered":{"charts":0,"images":1,"macros":1,"external_links":0,"defined_names":7,"comments":0,"pivot_tables":0},"unopened":[],"bounds":{"document_bytes":16777216,"sheet_cells":100000,"rows_first":2000,"rows_last":500,"rows_between":2000,"halvings":0,"cell_chars":16384,"cell_head_chars":4096},"cells_cut":0,"cells_raw":0,"read":"whole","date_system":"1900"}

{"sheet":"ФОРМА (договор)","index":0,"n_rows":76,"n_cols":14,"rows_kept":76,"cut":false,"hidden":false,"merged":[[75,1,75,3],[52,1,52,13],[50,1,50,2],[73,1,73,2],[53,1,53,2],[54,1,54,2],[55,1,55,2],[56,1,56,2],[71,1,71,2],[72,1,72,2],[53,3,53,13],[54,3,54,13],[55,3,55,13],[56,3,56,13],[58,1,58,13],[22,3,22,5],[33,2,33,3],[30,4,30,12],[50,3,50,5],[44,2,44,3],[49,1,49,13],[36,2,36,3],[39,2,39,3],[40,2,40,3],[41,2,41,3],[4,3,4,5],[6,3,6,5],[9,3,9,5],[10,3,10,5],[11,3,11,5],[5,3,5,5],[5,1,5,2],[23,3,23,5],[24,3,24,5],[20,1,20,2],[19,1,19,2],[18,1,18,5],[12,3,12,5],[15,3,15,5],[16,3,16,5],[19,3,19,5],[13,3,13,5],[20,3,20,5],[21,3,21,5],[15,1,15,2],[13,1,13,2],[12,1,12,2],[21,1,21,2],[35,2,35,3],[42,2,42,3],[43,2,43,3],[34,2,34,3],[24,1,24,2],[23,1,23,2],[22,1,22,2],[30,1,31,1],[30,2,31,3],[26,1,26,13],[27,1,27,13],[28,2,28,13],[37,2,37,3],[38,2,38,3],[32,2,32,3],[0,1,0,13],[45,2,45,3],[46,2,46,3],[47,1,47,3],[16,6,16,7],[4,1,4,2],[3,1,3,2],[2,1,2,2],[29,1,29,13],[10,1,10,2],[9,1,9,2],[8,1,8,5],[14,1,14,2],[6,1,6,2],[16,1,16,2],[11,1,11,2]]}
[null,"ПЕРЕД НАЧАЛОМ РАБОТЫ С ФАЙЛОМ НЕОБХОДИМО ВКЛЮЧИТЬ СОДЕРЖИМОЕ\nЗАПОЛНЯЮТСЯ ТОЛЬКО ЗЕЛЕНЫЕ ЯЧЕЙКИ!!!"]
[]
[null,null,null,"Фамилия","Имя","Отчество"]
[null,"ФИО Исполнителя"]
[null,"Дата рождения"]
[null,"Место рождения"]
[null,"Адрес регистрации"]
[]
[null,"Паспортные данные, ИНН и страховое свидетельство"]
[null,"Серия паспорта"]
[null,"Номер паспорта"]
[null,"Кем выдан"]
[null,"Дата выдачи"]
[null,"Код подразделения"]
[]
[null,"Номер страхового свидетельства"]
[null,"ИНН"]
[]
[null,"Банковские реквизиты:"]
[null,"Наименование банка"]
[null,"ИНН банка"]
[null,"КПП банка"]
[null,"К/с банка"]
[null,"БИК банка"]
[null,"Лицевой счет получателя"]
[]
[null,"Таблица для заполнения Переченя, объема, цены оказываемых услуг (Приложене №1 к договору) "]
[null,"Строки таблицы НЕ удалять и НЕ вырезать! В противном случае данные будут отображаться некорректно!\nСерые области НЕ заполнять, сумма считается автоматически!"]
[null,"Кафедра/\nКолледж"]
[null,"Перечень, объем, цена оказываемых услуг:"]
[null,"Учебная группа","Наименование дисциплины по учебному плану",null,"Нагрузка, час"]
[null,null,null,null,"лекции \n(не может быть дробным числом!)","практические занятия\n(не может быть дробным числом!)","лабораторные занятия\n(не может быть дробным числом!)","руководство/прием курсовых работ","прием зачетов/ экзаменов","руководство практикой","руководство НИР обучающихся ","участие в работе ГЭК","\n","Всего часов учебной нагрузки"]
[null,null,null,null,null,null,null,null,null,null,null,null,null,{"$f":"IF(SUM(E33:M33)=0,\"\",SUM(E33:M33))","v":""}]
[null,null,null,null,null,null,null,null,null,null,null,null,null,{"$f":"IF(SUM(E34:M34)=0,\"\",SUM(E34:M34))","v":""}]
[null,null,null,null,null,null,null,null,null,null,null,null,null,""]
[null,null,null,null,null,null,null,null,null,null,null,null,null,""]
[null,null,null,null,null,null,null,null,null,null,null,null,null,""]
[null,null,null,null,null,null,null,null,null,null,null,null,null,""]
[null,null,null,null,null,null,null,null,null,null,null,null,null,""]
[null,null,null,null,null,null,null,null,null,null,null,null,null,""]
[null,null,null,null,null,null,null,null,null,null,null,null,null,""]
[null,null,null,null,null,null,null,null,null,null,null,null,null,""]
[null,null,null,null,null,null,null,null,null,null,null,null,null,""]
[null,null,null,null,null,null,null,null,null,null,null,null,null,""]
[null,null,null,null,null,null,null,null,null,null,null,null,null,""]
[null,null,null,null,null,null,null,null,null,null,null,null,null,""]
[null,null,null,null,null,null,null,null,null,null,null,null,null,""]
[null,"Итого (час.)",null,null,{"$f":"IF(SUM(E33:E47)=0,\"\",SUM(E33:E47))","v":""},{"$f":"IF(SUM(F33:F47)=0,\"\",SUM(F33:F47))","v":""},"","","","","","","",{"$f":"SUM(N33:N47)","v":0}]
[]
[null,"ФИНАНСОВЫЕ УСЛОВИЯ ДОГОВОРА"]
[null,"Цена за ед., руб.  \n(на руки+НДФЛ)"]
[]
[null,"БЛОК СОДЕРЖИТ СТОИМОСТНЫЕ ХАРАКТЕРИСТИКИ ДОГОВОРА И ЗАПЛЛНЕНИЮ НЕ ПОДЛЕЖИТ"]
[null,"Цена за единицу в тексте договора, руб.",null,{"$f":"D51*1.3","v":0}]
[null,"Общая сумма вознаграждения по договору+НДФЛ",null,{"$f":"ROUND(D51*N48,2)","v":0}]
[null,"Взносы в государственные внебюджетные фонды",null,{"$f":"ROUND(D55*0.3,2)","v":0}]
[null,"Цена договора, руб.",null,{"$f":"D55+D56","v":0}]
[]
[null,"Таблица для заполнения Календарного плана (Приложене №3 к договору) "]
[]
[null,"Этап","Дата окончания этапа","Кол-во часов","Стоимость этапа"]
[null,"Сентябрь","2025-09-30",null,{"$f":"ROUND(D62*$D$54,2)","v":0}]
[null,"Октябрь","2025-10-31",null,{"$f":"ROUND(D63*$D$54,2)","v":0}]
[null,"Ноябрь","2025-11-28",null,0]
[null,"Декабрь","2025-12-26",null,0]
[null,"Январь","2026-01-30",null,0]
[null,"Февраль","2026-02-27",null,0]
[null,"Март","2026-03-31",null,0]
[null,"Апрель","2026-04-30",null,0]
[null,"Май","2026-05-29",null,0]
[null,"Июнь","2026-07-06",null,0]
[null,"Сумма по актам",null,{"$f":"SUM(D62:D71)","v":0},{"$f":"SUM(E62:E71)","v":0}]
[null,"Сумма по договору",null,{"$f":"N48","v":0},{"$f":"D57","v":0}]
[null,"Расхождения с данными Приложения №2",null,{"$f":"D73-D72","v":0},{"$f":"E73-E72","v":0}]
[]
[null,"Срок полного исполнения по договору"]

{"sheet":"ФОРМА (акт)","index":1,"n_rows":41,"n_cols":14,"rows_kept":41,"cut":false,"hidden":false,"merged":[[27,8,27,13],[6,1,6,13],[2,1,2,2],[2,3,2,5],[0,1,0,13],[3,1,3,2],[3,3,3,5],[4,1,4,2],[4,3,4,5],[10,2,10,3],[7,1,7,13],[8,1,9,1],[8,2,9,3],[8,4,8,12],[11,2,11,3],[23,2,23,3],[12,2,12,3],[24,2,24,3],[25,1,25,3],[13,2,13,3],[14,2,14,3],[20,2,20,3],[21,2,21,3],[22,2,22,3],[15,2,15,3],[16,2,16,3],[17,2,17,3],[18,2,18,3],[19,2,19,3]]}
[null,"Строки таблиц НЕ удалять и НЕ вырезать! В противном случае данные будут отображаться некорректно!\nСерые области НЕ заполять, сумма считается автоматически!"]
[]
[null,"Дата акта",null,"2025-09-30"]
[null,"Кафедра",null,{"$f":"IF('ФОРМА (договор)'!C29=\"\",\"Заполните название на вкладке ФОРМА (договор)\",'ФОРМА (договор)'!C29)","v":"Заполните название на вкладке ФОРМА (договор)"}]
[]
[]
[]
[null,"Перечень, объем оказываемых услуг:"]
[null,"Учебная группа","Наименование дисциплины по учебному плану",null,"Нагрузка, час"]
[null,null,null,null,"лекции \n(не может быть дробным числом!)","практические занятия\n(не может быть дробным числом!)","лабораторные занятия\n(не может быть дробным числом!)","руководство/прием курсовых работ","прием зачетов/ экзаменов","руководство практикой","руководство НИР обучающихся ","участие в работе ГЭК","\n","Всего часов учебной нагрузки"]
[null,null,null,null,null,null,null,null,null,null,null,null,null,{"$f":"IF(SUM(E11:M11)=0,\"\",SUM(E11:M11))","v":""}]
[null,null,null,null,null,null,null,null,null,null,null,null,null,{"$f":"IF(SUM(E12:M12)=0,\"\",SUM(E12:M12))","v":""}]
[null,null,null,null,null,null,null,null,null,null,null,null,null,""]
[null,null,null,null,null,null,null,null,null,null,null,null,null,""]
[null,null,null,null,null,null,null,null,null,null,null,null,null,""]
[null,null,null,null,null,null,null,null,null,null,null,null,null,""]
[null,null,null,null,null,null,null,null,null,null,null,null,null,""]
[null,null,null,null,null,null,null,null,null,null,null,null,null,""]
[null,null,null,null,null,null,null,null,null,null,null,null,null,""]
[null,null,null,null,null,null,null,null,null,null,null,null,null,""]
[null,null,null,null,null,null,null,null,null,null,null,null,null,""]
[null,null,null,null,null,null,null,null,null,null,null,null,null,""]
[null,null,null,null,null,null,null,null,null,null,null,null,null,""]
[null,null,null,null,null,null,null,null,null,null,null,null,null,""]
[null,null,null,null,null,null,null,null,null,null,null,null,null,""]
[null,"Итого (час.)",null,null,{"$f":"IF(SUM(E11:E25)=0,\"\",SUM(E11:E25))","v":""},{"$f":"IF(SUM(F11:F25)=0,\"\",SUM(F11:F25))","v":""},"","","","","",{"$f":"IF(SUM(L11:L25)=0,\"\",SUM(L11:L25))","v":""},"",{"$f":"SUM(N11:N25)","v":0}]
[]
[null,null,null,null,null,null,null,null,"Учет фактического оказания услуг"]
[null,null,null,null,null,null,null,null,"Этап","Дата окончания этапа","Кол-во часов по договору","Стоимость этапа по договору","Кол-во часов фактическое","Стоимость этапа фактическая"]
[null,null,null,null,null,null,null,null,"Сентябрь",{"$f":"'ФОРМА (договор)'!C62","v":"2025-09-30"},{"$f":"'ФОРМА (договор)'!D62","v":0},{"$f":"'ФОРМА (договор)'!E62","v":0},null,{"$f":"ROUND(M30*'ФОРМА (договор)'!$D$54,2)","v":0}]
[null,null,null,null,null,null,null,null,"Октябрь",{"$f":"'ФОРМА (договор)'!C63","v":"2025-10-31"},{"$f":"'ФОРМА (договор)'!D63","v":0},{"$f":"'ФОРМА (договор)'!E63","v":0},null,{"$f":"ROUND(M31*'ФОРМА (договор)'!$D$54,2)","v":0}]
[null,null,null,null,null,null,null,null,"Ноябрь",{"$f":"'ФОРМА (договор)'!C64","v":"2025-11-28"},{"$f":"'ФОРМА (договор)'!D64","v":0},{"$f":"'ФОРМА (договор)'!E64","v":0},null,{"$f":"ROUND(M32*'ФОРМА (договор)'!$D$54,2)","v":0}]
[null,null,null,null,null,null,null,null,"Декабрь",{"$f":"'ФОРМА (договор)'!C65","v":"2025-12-26"},{"$f":"'ФОРМА (договор)'!D65","v":0},{"$f":"'ФОРМА (договор)'!E65","v":0},null,{"$f":"ROUND(M33*'ФОРМА (договор)'!$D$54,2)","v":0}]
[null,null,null,null,null,null,null,null,"Январь",{"$f":"'ФОРМА (договор)'!C66","v":"2026-01-30"},{"$f":"'ФОРМА (договор)'!D66","v":0},{"$f":"'ФОРМА (договор)'!E66","v":0},null,{"$f":"ROUND(M34*'ФОРМА (договор)'!$D$54,2)","v":0}]
[null,null,null,null,null,null,null,null,"Февраль",{"$f":"'ФОРМА (договор)'!C67","v":"2026-02-27"},{"$f":"'ФОРМА (договор)'!D67","v":0},{"$f":"'ФОРМА (договор)'!E67","v":0},null,{"$f":"ROUND(M35*'ФОРМА (договор)'!$D$54,2)","v":0}]
[null,null,null,null,null,null,null,null,"Март",{"$f":"'ФОРМА (договор)'!C68","v":"2026-03-31"},{"$f":"'ФОРМА (договор)'!D68","v":0},{"$f":"'ФОРМА (договор)'!E68","v":0},null,{"$f":"ROUND(M36*'ФОРМА (договор)'!$D$54,2)","v":0}]
[null,null,null,null,null,null,null,null,"Апрель",{"$f":"'ФОРМА (договор)'!C69","v":"2026-04-30"},{"$f":"'ФОРМА (договор)'!D69","v":0},{"$f":"'ФОРМА (договор)'!E69","v":0},null,{"$f":"ROUND(M37*'ФОРМА (договор)'!$D$54,2)","v":0}]
[null,null,null,null,null,null,null,null,"Май",{"$f":"'ФОРМА (договор)'!C70","v":"2026-05-29"},{"$f":"'ФОРМА (договор)'!D70","v":0},{"$f":"'ФОРМА (договор)'!E70","v":0},null,{"$f":"ROUND(M38*'ФОРМА (договор)'!$D$54,2)","v":0}]
[null,null,null,null,null,null,null,null,"Июнь",{"$f":"'ФОРМА (договор)'!C71","v":"2026-07-06"},{"$f":"'ФОРМА (договор)'!D71","v":0},{"$f":"'ФОРМА (договор)'!E71","v":0},null,{"$f":"ROUND(M39*'ФОРМА (договор)'!$D$54,2)","v":0}]
[null,null,null,null,null,null,null,null,"Сумма по договору",null,{"$f":"SUM(K30:K39)","v":0},{"$f":"SUM(L30:L39)","v":0},{"$f":"SUM(M30:M39)","v":0},{"$f":"SUM(N30:N39)","v":0}]
[null,null,null,null,null,null,null,null,"Остаток",null,{"$f":"K40-M40","v":0},{"$f":"L40-N40","v":0}]

{"sheet":"Договор","index":2,"n_rows":101,"n_cols":10,"rows_kept":101,"cut":false,"hidden":false,"merged":[[0,0,0,9],[69,0,69,9],[70,0,70,9],[73,0,73,9],[54,0,54,9],[55,0,55,9],[43,0,43,9],[53,0,53,9],[49,0,49,9],[46,0,46,9],[38,0,38,9],[40,0,40,9],[29,0,29,9],[34,0,34,1],[39,0,39,1],[1,0,1,9],[77,0,77,9],[72,0,72,9],[85,5,85,9],[56,0,56,9],[67,0,67,9],[68,0,68,9],[59,0,59,9],[57,0,57,9],[58,0,58,9],[60,0,60,9],[62,0,62,9],[63,0,63,9],[64,0,64,9],[65,0,65,9],[84,0,84,3],[78,0,78,9],[100,0,100,3],[97,5,97,9],[100,5,100,9],[87,5,87,9],[90,5,90,9],[87,0,87,3],[88,0,88,3],[90,0,90,3],[91,5,91,6],[99,0,99,3],[92,0,93,3],[96,5,96,9],[92,5,92,9],[93,5,93,9],[94,5,94,9],[91,0,91,3],[3,0,3,3],[19,0,19,9],[20,0,20,9],[22,0,22,9],[5,0,5,9],[7,0,7,9],[6,0,6,9],[10,0,10,9],[11,0,11,9],[12,0,12,6],[14,0,14,9],[16,0,16,9],[15,0,15,3],[21,0,21,3],[9,0,9,9],[18,0,18,9],[23,0,23,9],[48,0,48,9],[45,0,45,9],[50,0,50,9],[51,0,51,9],[24,0,24,3],[27,0,27,3],[41,0,41,9],[25,0,25,9],[26,0,26,9],[42,0,42,9],[28,0,28,9],[39,2,39,9],[36,0,36,1],[30,0,30,9],[32,0,32,9],[98,5,98,9],[17,0,17,9],[95,5,95,9],[83,0,83,2],[44,0,44,9],[33,0,33,9],[34,2,34,9],[36,2,36,9],[86,0,86,3],[71,0,71,9],[74,0,74,9],[75,0,75,9],[80,0,80,9],[86,5,86,9],[76,0,76,9],[83,5,83,9]]}
["ДОГОВОР № __________________"]
["об оказании услуг физическим лицом"]
[]
["г. Санкт-Петербург ",null,null,null,null,null,null,null,null,"«____» _______________ 20___ г."]
[]
["Федеральное государственное бюджетное образовательное учреждение высшего образования  «Санкт-Петербургский государственный университет промышленных технологий и дизайна» (СПбГУПТД), именуемое в дальнейшем «Заказчик», в лице первого проректора, проректора по УР Рудина Александра Евгеньевича, действующего на основании доверенности № 38-01-01-10/01-37 от 16.01.2025 г., с одной стороны, и "]
[{"$f":"'ФОРМА (договор)'!D4&\" \"&'ФОРМА (договор)'!E4&\" \"&'ФОРМА (договор)'!F4&\",\"","v":"  ,"}]
["именуемый в дальнейшем «Исполнитель», с другой стороны, вместе именуемые «Стороны», в соответствии с Федеральным законом от 18.07.2011 № 223-ФЗ «О закупках товаров, работ, услуг отдельными видами юридических лиц», пп. 33 п.1 раздела 2 главы IV Положения о закупке Заказчика от 15.04.2022 г., заключили настоящий договор о нижеследующем:"]
[]
["1.      ПРЕДМЕТ ДОГОВОРА"]
["1.1. В соответствии с настоящим Договором Исполнитель обязуется оказать Заказчику преподавательские услуги в соответствии с Приложением № 1 к настоящему Договору, в сроки и в порядке, установленные в настоящем Договоре. Учебный процесс реализуется в очной форме и с применением электронного обучения и (или) дистанционных образовательных технологий."]
["1.2. Исполнитель оказывает Услуги лично, без привлечения третьих лиц."]
["1.3. Срок оказания Услуг устанавливается с момента заключения договора по",null,null,null,null,null,null,{"$f":"'ФОРМА (договор)'!E76","v":"00:00:00"},"г."]
[]
["2.      ПРАВА И ОБЯЗАННОСТИ СТОРОН"]
["2.1. Исполнитель обязан:"]
["2.1.1.     Качественно и своевременно оказывать Услуги, указанные в Приложении №1 к настоящему Договору."]
["2.1.2.    Обеспечивать Заказчику возможность проверки хода и качества оказания Услуг."]
["2.1.3.    Немедленно предупредить Заказчика о любых обстоятельствах, которые могут повлиять на качество и сроки оказания Услуг."]
["2.1.4.    Сохранять конфиденциальность информации, полученной от Заказчика. "]
["2.1.5.    Выполнять все требования Заказчика, касающиеся качественного и своевременного оказания Услуг. "]
["2.2. Исполнитель имеет право:"]
["2.2.1. Запрашивать у Заказчика информацию необходимую для оказания Услуг по Договору."]
["2.2.2. По согласованию с Заказчиком досрочно оказать Услуги."]
["2.3. Заказчик обязан:"]
["2.3.1. Принять оказанные Услуги в соответствии с условиями настоящего Договора."]
["2.3.2. Оплатить оказанные Услуги на условиях, предусмотренных в разделе 3 настоящего Договора."]
["2.4. Заказчик имеет право:"]
["2.4.1. Проверять ход и качество Услуг, оказываемых Исполнителем, не вмешиваясь в его деятельность."]
["2.4.2. Отказаться от исполнения настоящего Договора в любое время до подписания акта приема - сдачи Услуг, оплатив Исполнителю часть установленной цены пропорционально части оказанных Услуг. "]
["2.5. Стороны обязуются соблюдать конфиденциальность в отношении информации, полученной ими друг от друга, или ставшей известной им в ходе исполнения настоящего Договора, не открывать и не разглашать в общем или в частности информацию какой-либо третьей стороне без предварительного письменного согласия другой Стороны настоящего Договора."]
[]
["3.      ЦЕНА ДОГОВОРА. ПРИЕМКА УСЛУГ"]
["3.1. Цена Договора включает в себя все затраты, издержки и иные расходы Исполнителя, в том числе сопутствующие, связанные с исполнением настоящего Договора, является твердой и определяется на весь срок исполнения настоящего Договора. Общая стоимость услуг по настоящему Договору составляет"]
[{"$f":"'ФОРМА (договор)'!D57","v":0},null,{"$f":"'222'!I9&\" в том числе:\"","v":"(Нол) руб. 00 коп. в том числе:"}]
["-   сумма вознаграждения по договору"]
[{"$f":"'ФОРМА (договор)'!D55","v":0},null,{"$f":"'222'!K9","v":"(Нол) руб. 00 коп."}]
["включая НДФЛ, который Заказчик, являясь налоговым агентом, удерживает и перечисляет в бюджет;"]
["-   взносы в государственные внебюджетные фонды, перечисляемые Заказчиком (30%)"]
[{"$f":"'ФОРМА (договор)'!D56","v":0},null,{"$f":"'222'!K14","v":"(Нол) руб. 00 коп."}]
["3.2. Основанием для оплаты оказанных услуг является Акт сдачи-приемки ежемесячно оказанных услуг, подписанный Сторонами. Оплата осуществляется в безналичном порядке путем перечисления Заказчиком денежных средств Исполнителю в течение 30 (Тридцати) рабочих дней с момента подписания акта приёма-сдачи оказанных Услуг (далее - Акт)."]
["Оплата за декабрь текущего финансового года допускается авансовым платежом."]
["3.3. Сумма по Договору, подлежащей уплате соответствующему лицу уменьшается на размер налогов, сборов и иных обязательных платежей в бюджеты бюджетной системы Российской Федерации, связанных с оплатой Договора, если в соответствии с законодательством Российской Федерации о налогах и сборах такие налоги, сборы и иные обязательные платежи подлежат уплате в бюджеты бюджетной системы Российской Федерации Заказчиком."]
["3.4. Акт направляется на подписание Заказчику в срок не позднее 1-го (Первого) числа каждого месяца, следующего за отчетным, в которым были оказаны услуги."]
["3.5. Оплате подлежат только фактически оказанные Исполнителем и принятые по Акту Заказчиком Услуги. Приемка Услуг осуществляется Заказчиком в течение 5 дней после получения им Акта. В течение указанного срока Заказчик подписывает Акт или направляет мотивированный отказ. "]
["3.6. После устранения недостатков Исполнитель составляет повторный Акт, который подлежит рассмотрению и подписанию Заказчиком в порядке, установленном настоящим разделом."]
["3.7. Цена Договора может быть изменена по соглашению Сторон:\nа) при снижении цены Договора без изменения предусмотренных Договором объема, качества услуг и иных условий исполнения Договора;\nб) если по предложению Заказчика увеличивается или уменьшается предусмотренный Договором объем услуг не более чем на тридцать процентов. При этом по соглашению Сторон допускается изменение цены Договора пропорционально дополнительному объему услуг исходя из установленной в Договоре цены единицы услуги, но не более чем на тридцать процентов цены Договора. При уменьшении предусмотренного Договором объема услуг Стороны Договора обязаны уменьшить цену Договора исходя из цены единицы услуги."]
[]
["4.      ОТВЕТСТВЕННОСТЬ СТОРОН"]
["4.1. Стороны несут ответственность за невыполнение взятых на себя обязательств в соответствии с действующим законодательством Российской Федерации."]
["4.2. Стороны освобождаются от ответственности за неисполнение или ненадлежащее исполнение обязательств по настоящему Договору при возникновении обстоятельств непреодолимой силы, которые делают выполнение настоящего Договора невозможным. "]
["4.3. В случае неисполнения или ненадлежащего исполнения Исполнителем обязательств, предусмотренных настоящим Договором, Заказчик вправе направить Исполнителю требование об уплате штрафа в размере 3 (трех) процентов от цены Договора."]
[]
["5.      СРОК ДЕЙСТВИЯ И УСЛОВИЯ ПРЕКРАЩЕНИЕ ДОГОВОРА"]
["5.1. Договор вступает в силу с момента подписания и действует до полного исполнения Сторонами своих обязательств по Договору, в том числе размещения Заказчиком сведений в ЕИС (при необходимости)."]
["5.2. Расторжение настоящего Договора допускается по соглашению Сторон, по решению суда, в случае одностороннего отказа Стороны Договора от исполнения Договора в соответствии с законодательством и настоящим Договором."]
["5.3. Заказчик вправе в одностороннем порядке отказаться от исполнения обязательств по настоящему Договору силами Исполнителя, в случаях:"]
["5.3.1. если Исполнитель не может оказать услуги в объеме и сроки, предусмотренные настоящим Договором;"]
["5.3.2. существенного нарушения Исполнителем своих обязательств по Договору;"]
["5.3.3. в иных случаях, предусмотренных действующим законодательством и настоящим Договором."]
["5.4. При досрочном расторжении Договора Стороны производят взаиморасчеты за услуги только в той части, в какой они фактически оказаны Исполнителем и приняты в установленном порядке Заказчиком на момент такого расторжения. "]
[]
["6.        ПОРЯДОК УРЕГУЛИРОВАНИЯ СПОРОВ"]
["6.1. Стороны принимают все меры к тому, чтобы любые спорные вопросы, разногласия либо претензии, касающиеся исполнения настоящего Договора, были урегулированы путем переговоров."]
["6.2. В случае наличия претензий, споров, разногласий относительно исполнения одной из Сторон своих обязательств, другая Сторона направляет претензию. В отношении всех претензий, направляемых по настоящему Договору, Сторона, к которой адресована данная претензия, должна дать письменный ответ по существу претензии в срок не позднее 10 (десяти) рабочих дней с момента её получения. "]
["6.3. В случае невозможности разрешения споров путем переговоров они решаются в судебном порядке, предусмотренном законодательством Российской Федерации, по месту нахождения Заказчика."]
[]
["7.      ПРОЧИЕ УСЛОВИЯ"]
["7.1. По согласованию Сторон условия Договора могут быть изменены в случаях, предусмотренных Положением о закупке, действующим законодательством РФ. Все изменения по Договору оформляются в письменном виде, подписываются обеими Сторонами и являются неотъемлемой частью Договора."]
["7.2. Исполнитель определяет технологию оказания услуг самостоятельно, соблюдая обязательные требования нормативных документов, за исключением случаев, когда Заказчик прямо указал на способ оказания услуг."]
["7.3. Заказчик не несет ответственность за неполучение или несвоевременное получение Исполнителем суммы вознаграждения по Договору в случае, если Исполнитель указал в Договоре некорректные банковские реквизиты или своевременно не сообщил Заказчику об их изменении."]
["7.4. Исполнитель в порядке статьи 431.2 Гражданского кодекса Российской Федерации заверяет Заказчика о том, что в течение 2-х последних лет Исполнитель не занимал должности государственной или муниципальной службы."]
["7.5 В случае, если при исполнении договора происходит перераспределение количества часов между этапами с сохранением общего объема  услуг по договору, дополнительное соглашение не составляется."]
["7.6. Договор составлен в двух экземплярах, имеющих одинаковую юридическую силу, по одному для каждой из Сторон."]
["7.7. К Договору прилагаются и являются неотъемлемой его частью:"]
["Приложение № 1 – Перечень, объем, цена оказываемых услуг."]
["Приложение № 2 – СОГЛАСИЕ НА РАЗМЕЩЕНИЕ ЛИЧНОЙ ИНФОРМАЦИИ НА ИНФОРМАЦИОННЫХ РЕСУРСАХ."]
["Приложение № 3 – Календарный план."]
["Приложение № 4 – СОГЛАСИЕ НА ОБРАБОТКУ ПЕРСОНАЛЬНЫХ ДАННЫХ."]
[]
["8.      АДРЕСА И РЕКВИЗИТЫ СТОРОН"]
[]
["ЗАКАЗЧИК",null,null,null,null,"ИСПОЛНИТЕЛЬ"]
["СПбГУПТД ",null,null,null,null,{"$f":"\"Ф.И.О:  \"&'ФОРМА (договор)'!D4&\" \"&'ФОРМА (договор)'!E4&\" \"&'ФОРМА (договор)'!F4","v":"Ф.И.О:    "}]
["Адрес: 191186, Санкт-Петербург, ",null,null,null,null,"Дата и место рождения: ",null,{"$f":"'ФОРМА (договор)'!D5","v":"00:00:00"},"г."]
[null,null,null,null,null,{"$f":"'ФОРМА (договор)'!D6","v":"00:00:00"}]
["ул. Большая Морская, д. 18, лит. А\nИНН 7808042283, КПП 784001001",null,null,null,null,{"$f":"\"Адрес регистрации: \"&'ФОРМА (договор)'!D7","v":"Адрес регистрации: "}]
["Получатель: УФК по Нижегородской области (СПБГУПТД, л/с 20726Х72005)",null,null,null,null,{"$f":"\"Паспорт серия \"&'ФОРМА (договор)'!D10&\" № \"&'ФОРМА (договор)'!D11&\", выдан \"&'ФОРМА (договор)'!D12&\", \"","v":"Паспорт серия  № , выдан , "}]
["Счет в составе ЕКС: 40102810745370000024",null,null,null,null,"дата выдачи:",null,{"$f":"'ФОРМА (договор)'!D13","v":"00:00:00"},"г."]
[null,null,null,null,null,"Код подразделения:",null,{"$f":"'ФОРМА (договор)'!D14","v":0}]
["Казначейский счет: 03214643000000013225",null,null,null,null,{"$f":"\"Страх. св-во: \"&'ФОРМА (договор)'!D16","v":"Страх. св-во: "}]
["БИК 012202102",null,null,null,null,{"$f":"\"ИНН \"&'ФОРМА (договор)'!D17","v":"ИНН "}]
["ОКЦ №1 ВВГУ Банка России//УФК по Нижегородской области, г Нижний Новгород",null,null,null,null,"Банковские реквизиты:"]
[null,null,null,null,null,{"$f":"\"Наименование банка: \"&'ФОРМА (договор)'!D20","v":"Наименование банка: "}]
[null,null,null,null,null,{"$f":"\"ИНН/КПП банка: \"&'ФОРМА (договор)'!D21&\"/\"&'ФОРМА (договор)'!D22","v":"ИНН/КПП банка: /"}]
[null,null,null,null,null,{"$f":"\"К/с банка: \"&'ФОРМА (договор)'!D23","v":"К/с банка: "}]
[null,null,null,null,null,{"$f":"\"БИК банка: \"&'ФОРМА (договор)'!D24","v":"БИК банка: "}]
[null,null,null,null,null,{"$f":"\"Лицевой счет получателя: \"&'ФОРМА (договор)'!D25","v":"Лицевой счет получателя: "}]
[null,null,null,null,null,{"$f":"'ФОРМА (договор)'!C29","v":0}]
["Первый проректор, проректор по УР"]
["_________________А.Е. Рудин",null,null,null,null,{"$f":"\"_____________________ \"&LEFT('ФОРМА (договор)'!E4,1)&\".\"&LEFT('ФОРМА (договор)'!F4,1)&\". \"&'ФОРМА (договор)'!D4","v":"_____________________ .. "}]

{"sheet":"Прил. 1 Нагрузка","index":3,"n_rows":34,"n_cols":12,"rows_kept":34,"cut":false,"hidden":false,"merged":[[33,0,33,3],[23,0,23,1],[6,0,7,0],[6,1,7,1],[6,2,6,10],[31,0,31,3],[32,0,32,3],[24,2,24,11],[25,2,25,11],[27,0,27,11],[24,0,24,1],[25,0,25,1],[6,11,7,11]]}
[null,null,null,null,null,null,null,null,null,null,null,"Приложение №1"]
[null,null,null,null,null,null,null,null,null,null,null," к договору на оказание услуг"]
[null,null,null,null,null,null,null,null,null,null,null,"физическим лицом №__________________ от _______________ г."]
[]
[]
["Перечень, объем, цена оказываемых услуг"]
["Учебная группа","Наименование дисциплины по учебному плану","Нагрузка, час",null,null,null,null,null,null,null,null,"Всего часов учебной \nнагрузки"]
[null,null,"лекции","практические занятия","лабораторные занятия","руководство/\nприем курсовых работ","прием зачетов/ экзаменов","руководство практикой","руководство НИР \nобучающихся ","участие в работе ГЭК",{"$f":"IF('ФОРМА (договор)'!M32=\"\",\"\",'ФОРМА (договор)'!M32)","v":"\n"}]
[{"$f":"IF('ФОРМА (договор)'!B33=\"\",\"\",'ФОРМА (договор)'!B33)","v":""},{"$f":"IF('ФОРМА (договор)'!C33=\"\",\"\",'ФОРМА (договор)'!C33)","v":""},{"$f":"IF('ФОРМА (договор)'!E33=\"\",\"\",'ФОРМА (договор)'!E33)","v":""},{"$f":"IF('ФОРМА (договор)'!F33=\"\",\"\",'ФОРМА (договор)'!F33)","v":""},{"$f":"IF('ФОРМА (договор)'!G33=\"\",\"\",'ФОРМА (договор)'!G33)","v":""},{"$f":"IF('ФОРМА (договор)'!H33=\"\",\"\",'ФОРМА (договор)'!H33)","v":""},{"$f":"IF('ФОРМА (договор)'!I33=\"\",\"\",'ФОРМА (договор)'!I33)","v":""},{"$f":"IF('ФОРМА (договор)'!J33=\"\",\"\",'ФОРМА (договор)'!J33)","v":""},{"$f":"IF('ФОРМА (договор)'!K33=\"\",\"\",'ФОРМА (договор)'!K33)","v":""},{"$f":"IF('ФОРМА (договор)'!L33=\"\",\"\",'ФОРМА (договор)'!L33)","v":""},{"$f":"IF('ФОРМА (договор)'!M33=\"\",\"\",'ФОРМА (договор)'!M33)","v":""},{"$f":"IF(SUM(C9:K9)=0,\"\",SUM(C9:K9))","v":""}]
[{"$f":"IF('ФОРМА (договор)'!B34=\"\",\"\",'ФОРМА (договор)'!B34)","v":""},{"$f":"IF('ФОРМА (договор)'!C34=\"\",\"\",'ФОРМА (договор)'!C34)","v":""},{"$f":"IF('ФОРМА (договор)'!E34=\"\",\"\",'ФОРМА (договор)'!E34)","v":""},{"$f":"IF('ФОРМА (договор)'!F34=\"\",\"\",'ФОРМА (договор)'!F34)","v":""},{"$f":"IF('ФОРМА (договор)'!G34=\"\",\"\",'ФОРМА (договор)'!G34)","v":""},{"$f":"IF('ФОРМА (договор)'!H34=\"\",\"\",'ФОРМА (договор)'!H34)","v":""},{"$f":"IF('ФОРМА (договор)'!I34=\"\",\"\",'ФОРМА (договор)'!I34)","v":""},{"$f":"IF('ФОРМА (договор)'!J34=\"\",\"\",'ФОРМА (договор)'!J34)","v":""},{"$f":"IF('ФОРМА (договор)'!K34=\"\",\"\",'ФОРМА (договор)'!K34)","v":""},{"$f":"IF('ФОРМА (договор)'!L34=\"\",\"\",'ФОРМА (договор)'!L34)","v":""},{"$f":"IF('ФОРМА (договор)'!M34=\"\",\"\",'ФОРМА (договор)'!M34)","v":""},{"$f":"IF(SUM(C10:K10)=0,\"\",SUM(C10:K10))","v":""}]
[{"$f":"IF('ФОРМА (договор)'!B35=\"\",\"\",'ФОРМА (договор)'!B35)","v":""},{"$f":"IF('ФОРМА (договор)'!C35=\"\",\"\",'ФОРМА (договор)'!C35)","v":""},{"$f":"IF('ФОРМА (договор)'!E35=\"\",\"\",'ФОРМА (договор)'!E35)","v":""},{"$f":"IF('ФОРМА (договор)'!F35=\"\",\"\",'ФОРМА (договор)'!F35)","v":""},{"$f":"IF('ФОРМА (договор)'!G35=\"\",\"\",'ФОРМА (договор)'!G35)","v":""},{"$f":"IF('ФОРМА (договор)'!H35=\"\",\"\",'ФОРМА (договор)'!H35)","v":""},{"$f":"IF('ФОРМА (договор)'!I35=\"\",\"\",'ФОРМА (договор)'!I35)","v":""},{"$f":"IF('ФОРМА (договор)'!J35=\"\",\"\",'ФОРМА (договор)'!J35)","v":""},{"$f":"IF('ФОРМА (договор)'!K35=\"\",\"\",'ФОРМА (договор)'!K35)","v":""},{"$f":"IF('ФОРМА (договор)'!L35=\"\",\"\",'ФОРМА (договор)'!L35)","v":""},{"$f":"IF('ФОРМА (договор)'!M35=\"\",\"\",'ФОРМА (договор)'!M35)","v":""},""]
[{"$f":"IF('ФОРМА (договор)'!B36=\"\",\"\",'ФОРМА (договор)'!B36)","v":""},{"$f":"IF('ФОРМА (договор)'!C36=\"\",\"\",'ФОРМА (договор)'!C36)","v":""},{"$f":"IF('ФОРМА (договор)'!E36=\"\",\"\",'ФОРМА (договор)'!E36)","v":""},{"$f":"IF('ФОРМА (договор)'!F36=\"\",\"\",'ФОРМА (договор)'!F36)","v":""},{"$f":"IF('ФОРМА (договор)'!G36=\"\",\"\",'ФОРМА (договор)'!G36)","v":""},{"$f":"IF('ФОРМА (договор)'!H36=\"\",\"\",'ФОРМА (договор)'!H36)","v":""},{"$f":"IF('ФОРМА (договор)'!I36=\"\",\"\",'ФОРМА (договор)'!I36)","v":""},{"$f":"IF('ФОРМА (договор)'!J36=\"\",\"\",'ФОРМА (договор)'!J36)","v":""},{"$f":"IF('ФОРМА (договор)'!K36=\"\",\"\",'ФОРМА (договор)'!K36)","v":""},{"$f":"IF('ФОРМА (договор)'!L36=\"\",\"\",'ФОРМА (договор)'!L36)","v":""},{"$f":"IF('ФОРМА (договор)'!M36=\"\",\"\",'ФОРМА (договор)'!M36)","v":""},""]
[{"$f":"IF('ФОРМА (договор)'!B37=\"\",\"\",'ФОРМА (договор)'!B37)","v":""},{"$f":"IF('ФОРМА (договор)'!C37=\"\",\"\",'ФОРМА (договор)'!C37)","v":""},{"$f":"IF('ФОРМА (договор)'!E37=\"\",\"\",'ФОРМА (договор)'!E37)","v":""},{"$f":"IF('ФОРМА (договор)'!F37=\"\",\"\",'ФОРМА (договор)'!F37)","v":""},{"$f":"IF('ФОРМА (договор)'!G37=\"\",\"\",'ФОРМА (договор)'!G37)","v":""},{"$f":"IF('ФОРМА (договор)'!H37=\"\",\"\",'ФОРМА (договор)'!H37)","v":""},{"$f":"IF('ФОРМА (договор)'!I37=\"\",\"\",'ФОРМА (договор)'!I37)","v":""},{"$f":"IF('ФОРМА (договор)'!J37=\"\",\"\",'ФОРМА (договор)'!J37)","v":""},{"$f":"IF('ФОРМА (договор)'!K37=\"\",\"\",'ФОРМА (договор)'!K37)","v":""},{"$f":"IF('ФОРМА (договор)'!L37=\"\",\"\",'ФОРМА (договор)'!L37)","v":""},{"$f":"IF('ФОРМА (договор)'!M37=\"\",\"\",'ФОРМА (договор)'!M37)","v":""},""]
[{"$f":"IF('ФОРМА (договор)'!B38=\"\",\"\",'ФОРМА (договор)'!B38)","v":""},{"$f":"IF('ФОРМА (договор)'!C38=\"\",\"\",'ФОРМА (договор)'!C38)","v":""},{"$f":"IF('ФОРМА (договор)'!E38=\"\",\"\",'ФОРМА (договор)'!E38)","v":""},{"$f":"IF('ФОРМА (договор)'!F38=\"\",\"\",'ФОРМА (договор)'!F38)","v":""},{"$f":"IF('ФОРМА (договор)'!G38=\"\",\"\",'ФОРМА (договор)'!G38)","v":""},{"$f":"IF('ФОРМА (договор)'!H38=\"\",\"\",'ФОРМА (договор)'!H38)","v":""},{"$f":"IF('ФОРМА (договор)'!I38=\"\",\"\",'ФОРМА (договор)'!I38)","v":""},{"$f":"IF('ФОРМА (договор)'!J38=\"\",\"\",'ФОРМА (договор)'!J38)","v":""},{"$f":"IF('ФОРМА (договор)'!K38=\"\",\"\",'ФОРМА (договор)'!K38)","v":""},{"$f":"IF('ФОРМА (договор)'!L38=\"\",\"\",'ФОРМА (договор)'!L38)","v":""},{"$f":"IF('ФОРМА (договор)'!M38=\"\",\"\",'ФОРМА (договор)'!M38)","v":""},""]
[{"$f":"IF('ФОРМА (договор)'!B39=\"\",\"\",'ФОРМА (договор)'!B39)","v":""},{"$f":"IF('ФОРМА (договор)'!C39=\"\",\"\",'ФОРМА (договор)'!C39)","v":""},{"$f":"IF('ФОРМА (договор)'!E39=\"\",\"\",'ФОРМА (договор)'!E39)","v":""},{"$f":"IF('ФОРМА (договор)'!F39=\"\",\"\",'ФОРМА (договор)'!F39)","v":""},{"$f":"IF('ФОРМА (договор)'!G39=\"\",\"\",'ФОРМА (договор)'!G39)","v":""},{"$f":"IF('ФОРМА (договор)'!H39=\"\",\"\",'ФОРМА (договор)'!H39)","v":""},{"$f":"IF('ФОРМА (договор)'!I39=\"\",\"\",'ФОРМА (договор)'!I39)","v":""},{"$f":"IF('ФОРМА (договор)'!J39=\"\",\"\",'ФОРМА (договор)'!J39)","v":""},{"$f":"IF('ФОРМА (договор)'!K39=\"\",\"\",'ФОРМА (договор)'!K39)","v":""},{"$f":"IF('ФОРМА (договор)'!L39=\"\",\"\",'ФОРМА (договор)'!L39)","v":""},{"$f":"IF('ФОРМА (договор)'!M39=\"\",\"\",'ФОРМА (договор)'!M39)","v":""},""]
[{"$f":"IF('ФОРМА (договор)'!B40=\"\",\"\",'ФОРМА (договор)'!B40)","v":""},{"$f":"IF('ФОРМА (договор)'!C40=\"\",\"\",'ФОРМА (договор)'!C40)","v":""},{"$f":"IF('ФОРМА (договор)'!E40=\"\",\"\",'ФОРМА (договор)'!E40)","v":""},{"$f":"IF('ФОРМА (договор)'!F40=\"\",\"\",'ФОРМА (договор)'!F40)","v":""},{"$f":"IF('ФОРМА (договор)'!G40=\"\",\"\",'ФОРМА (договор)'!G40)","v":""},{"$f":"IF('ФОРМА (договор)'!H40=\"\",\"\",'ФОРМА (договор)'!H40)","v":""},{"$f":"IF('ФОРМА (договор)'!I40=\"\",\"\",'ФОРМА (договор)'!I40)","v":""},{"$f":"IF('ФОРМА (договор)'!J40=\"\",\"\",'ФОРМА (договор)'!J40)","v":""},{"$f":"IF('ФОРМА (договор)'!K40=\"\",\"\",'ФОРМА (договор)'!K40)","v":""},{"$f":"IF('ФОРМА (договор)'!L40=\"\",\"\",'ФОРМА (договор)'!L40)","v":""},{"$f":"IF('ФОРМА (договор)'!M40=\"\",\"\",'ФОРМА (договор)'!M40)","v":""},""]
[{"$f":"IF('ФОРМА (договор)'!B41=\"\",\"\",'ФОРМА (договор)'!B41)","v":""},{"$f":"IF('ФОРМА (договор)'!C41=\"\",\"\",'ФОРМА (договор)'!C41)","v":""},{"$f":"IF('ФОРМА (договор)'!E41=\"\",\"\",'ФОРМА (договор)'!E41)","v":""},{"$f":"IF('ФОРМА (договор)'!F41=\"\",\"\",'ФОРМА (договор)'!F41)","v":""},{"$f":"IF('ФОРМА (договор)'!G41=\"\",\"\",'ФОРМА (договор)'!G41)","v":""},{"$f":"IF('ФОРМА (договор)'!H41=\"\",\"\",'ФОРМА (договор)'!H41)","v":""},{"$f":"IF('ФОРМА (договор)'!I41=\"\",\"\",'ФОРМА (договор)'!I41)","v":""},{"$f":"IF('ФОРМА (договор)'!J41=\"\",\"\",'ФОРМА (договор)'!J41)","v":""},{"$f":"IF('ФОРМА (договор)'!K41=\"\",\"\",'ФОРМА (договор)'!K41)","v":""},{"$f":"IF('ФОРМА (договор)'!L41=\"\",\"\",'ФОРМА (договор)'!L41)","v":""},{"$f":"IF('ФОРМА (договор)'!M41=\"\",\"\",'ФОРМА (договор)'!M41)","v":""},""]
[{"$f":"IF('ФОРМА (договор)'!B42=\"\",\"\",'ФОРМА (договор)'!B42)","v":""},{"$f":"IF('ФОРМА (договор)'!C42=\"\",\"\",'ФОРМА (договор)'!C42)","v":""},{"$f":"IF('ФОРМА (договор)'!E42=\"\",\"\",'ФОРМА (договор)'!E42)","v":""},{"$f":"IF('ФОРМА (договор)'!F42=\"\",\"\",'ФОРМА (договор)'!F42)","v":""},{"$f":"IF('ФОРМА (договор)'!G42=\"\",\"\",'ФОРМА (договор)'!G42)","v":""},{"$f":"IF('ФОРМА (договор)'!H42=\"\",\"\",'ФОРМА (договор)'!H42)","v":""},{"$f":"IF('ФОРМА (договор)'!I42=\"\",\"\",'ФОРМА (договор)'!I42)","v":""},{"$f":"IF('ФОРМА (договор)'!J42=\"\",\"\",'ФОРМА (договор)'!J42)","v":""},{"$f":"IF('ФОРМА (договор)'!K42=\"\",\"\",'ФОРМА (договор)'!K42)","v":""},{"$f":"IF('ФОРМА (договор)'!L42=\"\",\"\",'ФОРМА (договор)'!L42)","v":""},{"$f":"IF('ФОРМА (договор)'!M42=\"\",\"\",'ФОРМА (договор)'!M42)","v":""},""]
[{"$f":"IF('ФОРМА (договор)'!B43=\"\",\"\",'ФОРМА (договор)'!B43)","v":""},{"$f":"IF('ФОРМА (договор)'!C43=\"\",\"\",'ФОРМА (договор)'!C43)","v":""},{"$f":"IF('ФОРМА (договор)'!E43=\"\",\"\",'ФОРМА (договор)'!E43)","v":""},{"$f":"IF('ФОРМА (договор)'!F43=\"\",\"\",'ФОРМА (договор)'!F43)","v":""},{"$f":"IF('ФОРМА (договор)'!G43=\"\",\"\",'ФОРМА (договор)'!G43)","v":""},{"$f":"IF('ФОРМА (договор)'!H43=\"\",\"\",'ФОРМА (договор)'!H43)","v":""},{"$f":"IF('ФОРМА (договор)'!I43=\"\",\"\",'ФОРМА (договор)'!I43)","v":""},{"$f":"IF('ФОРМА (договор)'!J43=\"\",\"\",'ФОРМА (договор)'!J43)","v":""},{"$f":"IF('ФОРМА (договор)'!K43=\"\",\"\",'ФОРМА (договор)'!K43)","v":""},{"$f":"IF('ФОРМА (договор)'!L43=\"\",\"\",'ФОРМА (договор)'!L43)","v":""},{"$f":"IF('ФОРМА (договор)'!M43=\"\",\"\",'ФОРМА (договор)'!M43)","v":""},""]
[{"$f":"IF('ФОРМА (договор)'!B44=\"\",\"\",'ФОРМА (договор)'!B44)","v":""},{"$f":"IF('ФОРМА (договор)'!C44=\"\",\"\",'ФОРМА (договор)'!C44)","v":""},{"$f":"IF('ФОРМА (договор)'!E44=\"\",\"\",'ФОРМА (договор)'!E44)","v":""},{"$f":"IF('ФОРМА (договор)'!F44=\"\",\"\",'ФОРМА (договор)'!F44)","v":""},{"$f":"IF('ФОРМА (договор)'!G44=\"\",\"\",'ФОРМА (договор)'!G44)","v":""},{"$f":"IF('ФОРМА (договор)'!H44=\"\",\"\",'ФОРМА (договор)'!H44)","v":""},{"$f":"IF('ФОРМА (договор)'!I44=\"\",\"\",'ФОРМА (договор)'!I44)","v":""},{"$f":"IF('ФОРМА (договор)'!J44=\"\",\"\",'ФОРМА (договор)'!J44)","v":""},{"$f":"IF('ФОРМА (договор)'!K44=\"\",\"\",'ФОРМА (договор)'!K44)","v":""},{"$f":"IF('ФОРМА (договор)'!L44=\"\",\"\",'ФОРМА (договор)'!L44)","v":""},{"$f":"IF('ФОРМА (договор)'!M44=\"\",\"\",'ФОРМА (договор)'!M44)","v":""},""]
[{"$f":"IF('ФОРМА (договор)'!B45=\"\",\"\",'ФОРМА (договор)'!B45)","v":""},{"$f":"IF('ФОРМА (договор)'!C45=\"\",\"\",'ФОРМА (договор)'!C45)","v":""},{"$f":"IF('ФОРМА (договор)'!E45=\"\",\"\",'ФОРМА (договор)'!E45)","v":""},{"$f":"IF('ФОРМА (договор)'!F45=\"\",\"\",'ФОРМА (договор)'!F45)","v":""},{"$f":"IF('ФОРМА (договор)'!G45=\"\",\"\",'ФОРМА (договор)'!G45)","v":""},{"$f":"IF('ФОРМА (договор)'!H45=\"\",\"\",'ФОРМА (договор)'!H45)","v":""},{"$f":"IF('ФОРМА (договор)'!I45=\"\",\"\",'ФОРМА (договор)'!I45)","v":""},{"$f":"IF('ФОРМА (договор)'!J45=\"\",\"\",'ФОРМА (договор)'!J45)","v":""},{"$f":"IF('ФОРМА (договор)'!K45=\"\",\"\",'ФОРМА (договор)'!K45)","v":""},{"$f":"IF('ФОРМА (договор)'!L45=\"\",\"\",'ФОРМА (договор)'!L45)","v":""},{"$f":"IF('ФОРМА (договор)'!M45=\"\",\"\",'ФОРМА (договор)'!M45)","v":""},""]
[{"$f":"IF('ФОРМА (договор)'!B46=\"\",\"\",'ФОРМА (договор)'!B46)","v":""},{"$f":"IF('ФОРМА (договор)'!C46=\"\",\"\",'ФОРМА (договор)'!C46)","v":""},{"$f":"IF('ФОРМА (договор)'!E46=\"\",\"\",'ФОРМА (договор)'!E46)","v":""},{"$f":"IF('ФОРМА (договор)'!F46=\"\",\"\",'ФОРМА (договор)'!F46)","v":""},{"$f":"IF('ФОРМА (договор)'!G46=\"\",\"\",'ФОРМА (договор)'!G46)","v":""},{"$f":"IF('ФОРМА (договор)'!H46=\"\",\"\",'ФОРМА (договор)'!H46)","v":""},{"$f":"IF('ФОРМА (договор)'!I46=\"\",\"\",'ФОРМА (договор)'!I46)","v":""},{"$f":"IF('ФОРМА (договор)'!J46=\"\",\"\",'ФОРМА (договор)'!J46)","v":""},{"$f":"IF('ФОРМА (договор)'!K46=\"\",\"\",'ФОРМА (договор)'!K46)","v":""},{"$f":"IF('ФОРМА (договор)'!L46=\"\",\"\",'ФОРМА (договор)'!L46)","v":""},{"$f":"IF('ФОРМА (договор)'!M46=\"\",\"\",'ФОРМА (договор)'!M46)","v":""},""]
[{"$f":"IF('ФОРМА (договор)'!B47=\"\",\"\",'ФОРМА (договор)'!B47)","v":""},{"$f":"IF('ФОРМА (договор)'!C47=\"\",\"\",'ФОРМА (договор)'!C47)","v":""},{"$f":"IF('ФОРМА (договор)'!E47=\"\",\"\",'ФОРМА (договор)'!E47)","v":""},{"$f":"IF('ФОРМА (договор)'!F47=\"\",\"\",'ФОРМА (договор)'!F47)","v":""},{"$f":"IF('ФОРМА (договор)'!G47=\"\",\"\",'ФОРМА (договор)'!G47)","v":""},{"$f":"IF('ФОРМА (договор)'!H47=\"\",\"\",'ФОРМА (договор)'!H47)","v":""},{"$f":"IF('ФОРМА (договор)'!I47=\"\",\"\",'ФОРМА (договор)'!I47)","v":""},{"$f":"IF('ФОРМА (договор)'!J47=\"\",\"\",'ФОРМА (договор)'!J47)","v":""},{"$f":"IF('ФОРМА (договор)'!K47=\"\",\"\",'ФОРМА (договор)'!K47)","v":""},{"$f":"IF('ФОРМА (договор)'!L47=\"\",\"\",'ФОРМА (договор)'!L47)","v":""},{"$f":"IF('ФОРМА (договор)'!M47=\"\",\"\",'ФОРМА (договор)'!M47)","v":""},""]
["Итого (час.)",null,{"$f":"IF(SUM(C9:C23)=0,\"\",SUM(C9:C23))","v":""},{"$f":"IF(SUM(D9:D23)=0,\"\",SUM(D9:D23))","v":""},"","","","","","","",{"$f":"SUM(L9:L23)","v":0}]
["Цена за ед., руб.*",null,{"$f":"'ФОРМА (договор)'!D54","v":0}]
["Стоимость, руб.*",null,{"$f":"L24*C25","v":0}]
[]
["* Включает сумму вознаграждения по договору, включая НДФЛ (13%), который Заказчик, являясь налоговым агентом, удерживает и перечисляет в бюджет, а также взносы в государственные внебюджетные фонды, перечисляемые Заказчиком в соответствии с действующим законодательством Российской Федерации (30%)"]
[]
["ЗАКАЗЧИК",null,null,null,null,null,"ИСПОЛНИТЕЛЬ"]
[]
["Первый проректор, проректор по УР "]
[]
["____________________А.Е. Рудин",null,null,null,null,null,{"$f":"\"__________________ \"&LEFT('ФОРМА (договор)'!E4,1)&\".\"&LEFT('ФОРМА (договор)'!F4,1)&\". \"&'ФОРМА (договор)'!D4","v":"__________________ .. "}]

{"sheet":"Прил 2. Согласие на размещение","index":4,"n_rows":34,"n_cols":6,"rows_kept":34,"cut":false,"hidden":false,"merged":[[23,0,23,5],[7,0,7,5],[9,0,9,5],[10,0,10,5],[11,0,11,5],[12,0,12,5],[13,0,13,5],[14,0,14,5],[16,0,16,5],[18,0,18,5],[20,0,20,5],[21,1,21,5],[33,2,33,3],[33,4,33,5],[25,0,25,5],[26,0,26,5],[28,0,28,5],[32,0,32,1],[32,2,32,3],[32,4,32,5]]}
[null,null,null,null,null,"Приложение №2"]
[null,null,null,null,null," к договору на оказание услуг"]
[null,null,null,null,null,"физическим лицом №__________________ от _____________ г."]
[]
[]
[]
[]
["СОГЛАСИЕ НА РАЗМЕЩЕНИЕ ЛИЧНОЙ ИНФОРМАЦИИ \nНА ИНФОРМАЦИОННЫХ РЕСУРСАХ"]
[]
[{"$f":"'ФОРМА (договор)'!D4&\" \"&'ФОРМА (договор)'!E4&\" \"&'ФОРМА (договор)'!F4","v":"  "}]
["Фамилия, имя, отчество"]
[{"$f":"\"Паспорт серия \"&'ФОРМА (договор)'!D10&\" № \"&'ФОРМА (договор)'!D11&\", выдан \"&'ФОРМА (договор)'!D12&\", дата выдачи \"&TEXT('ФОРМА (договор)'!D13,\"ДД.ММ.ГГГГ\")","v":"Паспорт серия  № , выдан , дата выдачи 00.01.1900"}]
["Паспортные данные"]
[{"$f":"'ФОРМА (договор)'!D7","v":0}]
["Адрес"]
[]
["Руководствуясь статьей 10.1 Федерального закона от 27.07.2006 № 152-ФЗ «О персональных данных», заявляю о согласии на распространение федеральным государственным бюджетным образовательным учреждением высшего образования «Санкт-Петербургский государственный университет промышленных технологий и дизайна» (СПбГУПТД), расположенным по адресу: 191186, г. Санкт-Петербург, ул. Большая Морская, д.18; ОКПО 02068605, ОГРН 1027809192102, ИНН/КПП 7808042283/784001001. Тел. (812) 315-75-25, факс (812) 571-95-84, e-mail: rector@sutd.ru, http://www.sutd.ru моих персональных данных с целью размещения информации обо мне на информационных ресурсах СПбГУПТД."]
[]
["Информационные ресурсы, посредством которых будут осуществляться предоставление доступа неограниченному кругу лиц и иные действия с персональными данными субъекта персональных данных: www.sutd.ru, https://prouniver.ru/, Информационный буклет (газета) «texСТИЛЬ», Он-лайн информационный портал «Студпресса» «Новости молодежи Петербурга» www.studpressa.ru, Интернет-журнал Сарафан https://vk.com/sarafanitd, информационные стенды в учебных корпусах университетах в целях исполнения требований подпункта 3 пункта 1 части 2 статьи 29 ФЗ от 29.12.2012 № 273-ФЗ «Об образовании в Российской Федерации», Постановления Правительства РФ от 10 июля 2013 г. N 582 и приказа Рособрнадзора от 14.08.2020 № 83, обеспечения открытости сведений о научно-педагогических и иных работниках и размещения информации о моем участии в мероприятиях учебного процесса и научных, спортивных мероприятиях, в том числе в конференциях, выставках, мастер-классах, семинарах."]
[]
["Перечень персональных данных, на обработку которых дается согласие (категория – общие персональные данные):"]
[null,"фамилия, имя, отчество; должность; подразделение; день и месяц рождения; данные документа об образовании (дата выдачи, наименование оконченного образовательного учреждения); квалификация по документу об образовании; специальность/направление подготовки по документу об образовании; данные документа о повышении квалификации и профессиональной переподготовке; ученая степень, ученое звание (когда присвоены, каких наук); членство в творческих союзах; документы, подтверждающие индивидуальные достижения; номер рабочего телефона; адрес электронной почты; адрес рабочего места; публикации, учебно-методические материалы; фотографическое изображение; преподаваемые дисциплины; область научных интересов; публикации; сведения о профессиональном опыте; стаж (общий, научно-педагогический, педагогический, по специальности); государственные, ведомственные награды и знаки отличия."]
[]
["Условия и запреты: _________________________________________________________________________"]
[]
["Настоящее согласие действует с момента его подписания на весь период моей трудовой деятельности в СПбГУПТД. Мне разъяснено право потребовать прекратить распространение моих персональных данных путем подачи СПбГУПТД письменного заявления. "]
["Я уведомлен о праве оператора на обработку персональных данных без моего согласия при наличии оснований, указанных в пунктах 2 - 11 части 1 статьи 6, части 2 статьи 10 и части 2 статьи 11 Федерального закона от 27 июля 2006 г. № 152-ФЗ «О персональных данных», в том числе в случае отзыва мною согласия на обработку персональных данных."]
[]
["С действующими на момент подписания настоящего согласия «Политикой СПбГУПТД в отношении обработки и защиты персональных данных» и «Положением об обработке и защите персональных данных в СПбГУПТД», ознакомлен, права и обязанности в области защиты персональных данных мне разъяснены."]
[]
[]
[]
["«______» _______________ 20_____г.",null,"_______________________",null,{"$f":"LEFT('ФОРМА (договор)'!E4,1)&\".\"&LEFT('ФОРМА (договор)'!F4,1)&\". \"&'ФОРМА (договор)'!D4","v":".. "}]
[null,null,"подпись",null,"расшифровка подписи"]

{"sheet":"Прил 3. Календ.План","index":5,"n_rows":26,"n_cols":4,"rows_kept":26,"cut":false,"hidden":false,"merged":[[17,0,17,1],[23,0,23,1],[19,0,19,3]]}
[null,null,null,"Приложение №3"]
[null,null,null," к договору на оказание услуг"]
[null,null,null,"физическим лицом №__________________ от _______________ г."]
[]
[null,null,"Календарный план"]
[]
["Этап","Дата окончания этапа","Кол-во часов","Стоимость этапа"]
["Сентябрь",{"$f":"'ФОРМА (договор)'!C62","v":"2025-09-30"},{"$f":"'ФОРМА (договор)'!D62","v":0},{"$f":"'ФОРМА (договор)'!E62","v":0}]
["Октябрь",{"$f":"'ФОРМА (договор)'!C63","v":"2025-10-31"},{"$f":"'ФОРМА (договор)'!D63","v":0},{"$f":"'ФОРМА (договор)'!E63","v":0}]
["Ноябрь",{"$f":"'ФОРМА (договор)'!C64","v":"2025-11-28"},{"$f":"'ФОРМА (договор)'!D64","v":0},{"$f":"'ФОРМА (договор)'!E64","v":0}]
["Декабрь",{"$f":"'ФОРМА (договор)'!C65","v":"2025-12-26"},{"$f":"'ФОРМА (договор)'!D65","v":0},{"$f":"'ФОРМА (договор)'!E65","v":0}]
["Январь",{"$f":"'ФОРМА (договор)'!C66","v":"2026-01-30"},{"$f":"'ФОРМА (договор)'!D66","v":0},{"$f":"'ФОРМА (договор)'!E66","v":0}]
["Февраль",{"$f":"'ФОРМА (договор)'!C67","v":"2026-02-27"},{"$f":"'ФОРМА (договор)'!D67","v":0},{"$f":"'ФОРМА (договор)'!E67","v":0}]
["Март",{"$f":"'ФОРМА (договор)'!C68","v":"2026-03-31"},{"$f":"'ФОРМА (договор)'!D68","v":0},{"$f":"'ФОРМА (договор)'!E68","v":0}]
["Апрель",{"$f":"'ФОРМА (договор)'!C69","v":"2026-04-30"},{"$f":"'ФОРМА (договор)'!D69","v":0},{"$f":"'ФОРМА (договор)'!E69","v":0}]
["Май",{"$f":"'ФОРМА (договор)'!C70","v":"2026-05-29"},{"$f":"'ФОРМА (договор)'!D70","v":0},{"$f":"'ФОРМА (договор)'!E70","v":0}]
["Июнь",{"$f":"'ФОРМА (договор)'!C71","v":"2026-07-06"},{"$f":"'ФОРМА (договор)'!D71","v":0},{"$f":"'ФОРМА (договор)'!E71","v":0}]
["Сумма ",null,{"$f":"SUM(C8:C17)","v":0},{"$f":"SUM(D8:D17)","v":0}]
[]
["В случае, если при исполнении договора происходит перераспределение количества часов между этапами с сохранением общего объема  услуг по договору, дополнительное соглашение не составляется."]
[]
["ЗАКАЗЧИК",null,null,"ИСПОЛНИТЕЛЬ"]
[]
["Первый проректор, проректор по УР "]
[]
["____________________А.Е. Рудин",null,null,{"$f":"\"__________________ \"&LEFT('ФОРМА (договор)'!E4,1)&\".\"&LEFT('ФОРМА (договор)'!F4,1)&\". \"&'ФОРМА (договор)'!D4","v":"__________________ .. "}]

{"sheet":"Прил 4. Согласие на ОПД","index":6,"n_rows":26,"n_cols":6,"rows_kept":26,"cut":false,"hidden":false,"merged":[[22,0,22,5],[21,0,21,5],[25,2,25,3],[25,4,25,5],[24,2,24,3],[24,4,24,5],[24,0,24,1],[7,0,7,5],[16,0,16,5],[18,0,18,5],[19,1,19,5],[9,0,9,5],[10,0,10,5],[12,0,12,5],[11,0,11,5],[14,0,14,5],[13,0,13,5]]}
[null,null,null,null,null,"Приложение №4"]
[null,null,null,null,null," к договору на оказание услуг"]
[null,null,null,null,null,"физическим лицом №__________________ от _____________ г."]
[]
[]
[]
[]
["СОГЛАСИЕ НА ОБРАБОТКУ ПЕРСОНАЛЬНЫХ ДАННЫХ"]
[]
[{"$f":"'ФОРМА (договор)'!D4&\" \"&'ФОРМА (договор)'!E4&\" \"&'ФОРМА (договор)'!F4","v":"  "}]
["Фамилия, имя, отчество"]
[{"$f":"\"Паспорт серия \"&'ФОРМА (договор)'!D10&\" № \"&'ФОРМА (договор)'!D11&\", выдан \"&'ФОРМА (договор)'!D12&\", дата выдачи \"&TEXT('ФОРМА (договор)'!D13,\"ДД.ММ.ГГГГ\")","v":"Паспорт серия  № , выдан , дата выдачи 00.01.1900"}]
["Паспортные данные"]
[{"$f":"'ФОРМА (договор)'!D7","v":0}]
["Адрес"]
[]
["Согласен(на) на обработку, включая сбор, систематизацию, накопление, хранение, уточнение, использование, передачу, блокирование, уничтожение моих персональных данных федеральным государственным бюджетным образовательным учреждением высшего образования «Санкт-Петербургский государственный университет промышленных  технологий и дизайна» (СПбГУПТД), расположенным по адресу: г. Санкт-Петербург, ул. Большая Морская, д.18. Согласие мною дано и действует со дня его подписания до достижения цели обработки;  с правом обработки моих персональных данных с использованием средств автоматизации (в информационных системах и базах данных СПбГУПТД) и без их использования, с правом передачи на цифровых носителях и по каналам связи. Настоящим согласием подтверждаю копирование и хранение моих документов об образовании, ученой степени, ученом звании, о повышении квалификации, о трудовой деятельности. Согласие дано с целью содействия мне, как субъекту персональных данных, в осуществлении моей деятельности, а также наиболее полного исполнения СПбГУПТД обязательств в соответствии с законодательством."]
[]
["Перечень персональных данных, на обработку которых дается согласие, с целью заключения и исполнения договоров ГПХ с физическими лицами, не являющимися работниками СПбГУПТД:"]
[null,"фамилия, имя, отчество; табельный номер; адрес регистрации; данные документа, удостоверяющего личность; ученая степень, ученое звание (когда присвоено, каких наук, номера дипломов, аттестатов); подразделение; ИНН; СНИЛС; номер мобильного телефона; данные о договоре на оказание услуг (номер договора, дата его заключения, дата начала и дата окончания договора, вид услуг, объем нагрузки, номер и число изменения к договору, характер работы, форма оплаты, категория персонала); размер вознаграждения за выполненные работы/услуги; банковские реквизиты."]
[]
["В соответствии со ст. 44.1 п.1 ФЗ «О связи» и ст. 18  п.1 ФЗ «О рекламе», о рассылке по сети подвижной радиотелефонной связи из информационно-образовательной среды СПбГУПТД, даю согласие на подключение рассылок электронных сообщений, в том числе SMS-сообщений. Цель рассылок электронных сообщений заключается в отправке информационных сообщений, в том числе, прав доступа в информационно-образовательную среду."]
["Я оставляю за собой право отозвать свое согласие в письменной форме в любое время. Информация о близких родственниках предоставляется мной лично и обрабатывается с моих слов. С действующими на момент подписания настоящего согласия «Политикой СПбГУПТД в отношении обработки и защиты персональных данных» и «Положением об обработке и защите персональных данных в СПбГУПТД», ознакомлен, права и обязанности в области защиты персональных данных мне разъяснены."]
[]
["«______» _______________ 20_____г.",null,"_______________________",null,{"$f":"LEFT('ФОРМА (договор)'!E4,1)&\".\"&LEFT('ФОРМА (договор)'!F4,1)&\". \"&'ФОРМА (договор)'!D4","v":".. "}]
[null,null,"подпись",null,"расшифровка подписи"]

{"sheet":"АКТ","index":7,"n_rows":47,"n_cols":12,"rows_kept":47,"cut":false,"hidden":false,"merged":[[40,0,40,11],[36,0,36,11],[38,0,38,11],[29,2,29,11],[30,2,30,11],[29,0,29,1],[30,0,30,1],[34,4,34,5],[39,0,39,11],[0,0,0,11],[1,0,1,11],[5,0,5,11],[7,0,7,11],[8,0,8,11],[3,5,3,11],[10,0,11,0],[10,2,10,10],[27,0,27,1],[28,0,28,1],[28,2,28,11],[10,1,11,1],[10,11,11,11]]}
["Акт сдачи-приемки оказанных услуг "]
["по договору №______________________________________от _________________"]
[]
["г. Санкт-Петербург",null,null,null,null,{"$f":"'ФОРМА (акт)'!D3","v":"2025-09-30"}]
[]
["Федеральное государственное бюджетное образовательное учреждение высшего образования «Санкт-Петербургский государственный университет промышленных технологий и дизайна», именуемое в дальнейшем «Заказчик», в лице первого проректора, проректора по УР Рудина Александра Евгеньевича, действующего на основании доверенности № 38-01-01-10/01-37 от 16.01.2025 г., с одной стороны, и"]
[]
[{"$f":"'ФОРМА (договор)'!D4&\" \"&'ФОРМА (договор)'!E4&\" \"&'ФОРМА (договор)'!F4&\",\"","v":"  ,"}]
[{"$f":"\"именуемый(-ая) в дальнейшем «Исполнитель», с другой стороны составили настоящий акт о том, что Исполнителем оказаны, а Заказчиком приняты  услуги в \"&VLOOKUP('ФОРМА (акт)'!D3,'222'!E:F,2,FALSE)&\" \"&VLOOKUP('ФОРМА (акт)'!D3,'222'!E:G,3,FALSE)&\" г. в следующем объеме:\"","v":"именуемый(-ая) в дальнейшем «Исполнитель», с другой стороны составили настоящий акт о том, что Исполнителем оказаны, а Заказчиком приняты  услуги в сентябре 2025 г. в следующем объеме:"}]
[]
["Учебная группа","Наименование дисциплины по учебному плану","Нагрузка, час",null,null,null,null,null,null,null,null,"Всего часов учебной \nнагрузки"]
[null,null,"лекции","практические занятия","лабораторные занятия","руководство/\nприем курсовых работ","прием зачетов/ экзаменов","руководство практикой","руководство НИР \nобучающихся ","участие в работе ГЭК",{"$f":"IF('ФОРМА (акт)'!M10=\"\",\"\",'ФОРМА (акт)'!M10)","v":"\n"}]
[{"$f":"IF('ФОРМА (акт)'!B11=\"\",\"\",'ФОРМА (акт)'!B11)","v":""},{"$f":"IF('ФОРМА (акт)'!C11=\"\",\"\",'ФОРМА (акт)'!C11)","v":""},{"$f":"IF('ФОРМА (акт)'!E11=\"\",\"\",'ФОРМА (акт)'!E11)","v":""},{"$f":"IF('ФОРМА (акт)'!F11=\"\",\"\",'ФОРМА (акт)'!F11)","v":""},{"$f":"IF('ФОРМА (акт)'!G11=\"\",\"\",'ФОРМА (акт)'!G11)","v":""},{"$f":"IF('ФОРМА (акт)'!H11=\"\",\"\",'ФОРМА (акт)'!H11)","v":""},{"$f":"IF('ФОРМА (акт)'!I11=\"\",\"\",'ФОРМА (акт)'!I11)","v":""},{"$f":"IF('ФОРМА (акт)'!J11=\"\",\"\",'ФОРМА (акт)'!J11)","v":""},{"$f":"IF('ФОРМА (акт)'!K11=\"\",\"\",'ФОРМА (акт)'!K11)","v":""},{"$f":"IF('ФОРМА (акт)'!L11=\"\",\"\",'ФОРМА (акт)'!L11)","v":""},{"$f":"IF('ФОРМА (акт)'!M11=\"\",\"\",'ФОРМА (акт)'!M11)","v":""},{"$f":"IF('ФОРМА (акт)'!N11=\"\",\"\",'ФОРМА (акт)'!N11)","v":""}]
[{"$f":"IF('ФОРМА (акт)'!B12=\"\",\"\",'ФОРМА (акт)'!B12)","v":""},{"$f":"IF('ФОРМА (акт)'!C12=\"\",\"\",'ФОРМА (акт)'!C12)","v":""},{"$f":"IF('ФОРМА (акт)'!E12=\"\",\"\",'ФОРМА (акт)'!E12)","v":""},{"$f":"IF('ФОРМА (акт)'!F12=\"\",\"\",'ФОРМА (акт)'!F12)","v":""},{"$f":"IF('ФОРМА (акт)'!G12=\"\",\"\",'ФОРМА (акт)'!G12)","v":""},{"$f":"IF('ФОРМА (акт)'!H12=\"\",\"\",'ФОРМА (акт)'!H12)","v":""},{"$f":"IF('ФОРМА (акт)'!I12=\"\",\"\",'ФОРМА (акт)'!I12)","v":""},{"$f":"IF('ФОРМА (акт)'!J12=\"\",\"\",'ФОРМА (акт)'!J12)","v":""},{"$f":"IF('ФОРМА (акт)'!K12=\"\",\"\",'ФОРМА (акт)'!K12)","v":""},{"$f":"IF('ФОРМА (акт)'!L12=\"\",\"\",'ФОРМА (акт)'!L12)","v":""},{"$f":"IF('ФОРМА (акт)'!M12=\"\",\"\",'ФОРМА (акт)'!M12)","v":""},{"$f":"IF('ФОРМА (акт)'!N12=\"\",\"\",'ФОРМА (акт)'!N12)","v":""}]
[{"$f":"IF('ФОРМА (акт)'!B13=\"\",\"\",'ФОРМА (акт)'!B13)","v":""},{"$f":"IF('ФОРМА (акт)'!C13=\"\",\"\",'ФОРМА (акт)'!C13)","v":""},{"$f":"IF('ФОРМА (акт)'!E13=\"\",\"\",'ФОРМА (акт)'!E13)","v":""},{"$f":"IF('ФОРМА (акт)'!F13=\"\",\"\",'ФОРМА (акт)'!F13)","v":""},{"$f":"IF('ФОРМА (акт)'!G13=\"\",\"\",'ФОРМА (акт)'!G13)","v":""},{"$f":"IF('ФОРМА (акт)'!H13=\"\",\"\",'ФОРМА (акт)'!H13)","v":""},{"$f":"IF('ФОРМА (акт)'!I13=\"\",\"\",'ФОРМА (акт)'!I13)","v":""},{"$f":"IF('ФОРМА (акт)'!J13=\"\",\"\",'ФОРМА (акт)'!J13)","v":""},{"$f":"IF('ФОРМА (акт)'!K13=\"\",\"\",'ФОРМА (акт)'!K13)","v":""},{"$f":"IF('ФОРМА (акт)'!L13=\"\",\"\",'ФОРМА (акт)'!L13)","v":""},{"$f":"IF('ФОРМА (акт)'!M13=\"\",\"\",'ФОРМА (акт)'!M13)","v":""},{"$f":"IF('ФОРМА (акт)'!N13=\"\",\"\",'ФОРМА (акт)'!N13)","v":""}]
[{"$f":"IF('ФОРМА (акт)'!B14=\"\",\"\",'ФОРМА (акт)'!B14)","v":""},{"$f":"IF('ФОРМА (акт)'!C14=\"\",\"\",'ФОРМА (акт)'!C14)","v":""},{"$f":"IF('ФОРМА (акт)'!E14=\"\",\"\",'ФОРМА (акт)'!E14)","v":""},{"$f":"IF('ФОРМА (акт)'!F14=\"\",\"\",'ФОРМА (акт)'!F14)","v":""},{"$f":"IF('ФОРМА (акт)'!G14=\"\",\"\",'ФОРМА (акт)'!G14)","v":""},{"$f":"IF('ФОРМА (акт)'!H14=\"\",\"\",'ФОРМА (акт)'!H14)","v":""},{"$f":"IF('ФОРМА (акт)'!I14=\"\",\"\",'ФОРМА (акт)'!I14)","v":""},{"$f":"IF('ФОРМА (акт)'!J14=\"\",\"\",'ФОРМА (акт)'!J14)","v":""},{"$f":"IF('ФОРМА (акт)'!K14=\"\",\"\",'ФОРМА (акт)'!K14)","v":""},{"$f":"IF('ФОРМА (акт)'!L14=\"\",\"\",'ФОРМА (акт)'!L14)","v":""},{"$f":"IF('ФОРМА (акт)'!M14=\"\",\"\",'ФОРМА (акт)'!M14)","v":""},{"$f":"IF('ФОРМА (акт)'!N14=\"\",\"\",'ФОРМА (акт)'!N14)","v":""}]
[{"$f":"IF('ФОРМА (акт)'!B15=\"\",\"\",'ФОРМА (акт)'!B15)","v":""},{"$f":"IF('ФОРМА (акт)'!C15=\"\",\"\",'ФОРМА (акт)'!C15)","v":""},{"$f":"IF('ФОРМА (акт)'!E15=\"\",\"\",'ФОРМА (акт)'!E15)","v":""},{"$f":"IF('ФОРМА (акт)'!F15=\"\",\"\",'ФОРМА (акт)'!F15)","v":""},{"$f":"IF('ФОРМА (акт)'!G15=\"\",\"\",'ФОРМА (акт)'!G15)","v":""},{"$f":"IF('ФОРМА (акт)'!H15=\"\",\"\",'ФОРМА (акт)'!H15)","v":""},{"$f":"IF('ФОРМА (акт)'!I15=\"\",\"\",'ФОРМА (акт)'!I15)","v":""},{"$f":"IF('ФОРМА (акт)'!J15=\"\",\"\",'ФОРМА (акт)'!J15)","v":""},{"$f":"IF('ФОРМА (акт)'!K15=\"\",\"\",'ФОРМА (акт)'!K15)","v":""},{"$f":"IF('ФОРМА (акт)'!L15=\"\",\"\",'ФОРМА (акт)'!L15)","v":""},{"$f":"IF('ФОРМА (акт)'!M15=\"\",\"\",'ФОРМА (акт)'!M15)","v":""},{"$f":"IF('ФОРМА (акт)'!N15=\"\",\"\",'ФОРМА (акт)'!N15)","v":""}]
[{"$f":"IF('ФОРМА (акт)'!B16=\"\",\"\",'ФОРМА (акт)'!B16)","v":""},{"$f":"IF('ФОРМА (акт)'!C16=\"\",\"\",'ФОРМА (акт)'!C16)","v":""},{"$f":"IF('ФОРМА (акт)'!E16=\"\",\"\",'ФОРМА (акт)'!E16)","v":""},{"$f":"IF('ФОРМА (акт)'!F16=\"\",\"\",'ФОРМА (акт)'!F16)","v":""},{"$f":"IF('ФОРМА (акт)'!G16=\"\",\"\",'ФОРМА (акт)'!G16)","v":""},{"$f":"IF('ФОРМА (акт)'!H16=\"\",\"\",'ФОРМА (акт)'!H16)","v":""},{"$f":"IF('ФОРМА (акт)'!I16=\"\",\"\",'ФОРМА (акт)'!I16)","v":""},{"$f":"IF('ФОРМА (акт)'!J16=\"\",\"\",'ФОРМА (акт)'!J16)","v":""},{"$f":"IF('ФОРМА (акт)'!K16=\"\",\"\",'ФОРМА (акт)'!K16)","v":""},{"$f":"IF('ФОРМА (акт)'!L16=\"\",\"\",'ФОРМА (акт)'!L16)","v":""},{"$f":"IF('ФОРМА (акт)'!M16=\"\",\"\",'ФОРМА (акт)'!M16)","v":""},{"$f":"IF('ФОРМА (акт)'!N16=\"\",\"\",'ФОРМА (акт)'!N16)","v":""}]
[{"$f":"IF('ФОРМА (акт)'!B17=\"\",\"\",'ФОРМА (акт)'!B17)","v":""},{"$f":"IF('ФОРМА (акт)'!C17=\"\",\"\",'ФОРМА (акт)'!C17)","v":""},{"$f":"IF('ФОРМА (акт)'!E17=\"\",\"\",'ФОРМА (акт)'!E17)","v":""},{"$f":"IF('ФОРМА (акт)'!F17=\"\",\"\",'ФОРМА (акт)'!F17)","v":""},{"$f":"IF('ФОРМА (акт)'!G17=\"\",\"\",'ФОРМА (акт)'!G17)","v":""},{"$f":"IF('ФОРМА (акт)'!H17=\"\",\"\",'ФОРМА (акт)'!H17)","v":""},{"$f":"IF('ФОРМА (акт)'!I17=\"\",\"\",'ФОРМА (акт)'!I17)","v":""},{"$f":"IF('ФОРМА (акт)'!J17=\"\",\"\",'ФОРМА (акт)'!J17)","v":""},{"$f":"IF('ФОРМА (акт)'!K17=\"\",\"\",'ФОРМА (акт)'!K17)","v":""},{"$f":"IF('ФОРМА (акт)'!L17=\"\",\"\",'ФОРМА (акт)'!L17)","v":""},{"$f":"IF('ФОРМА (акт)'!M17=\"\",\"\",'ФОРМА (акт)'!M17)","v":""},{"$f":"IF('ФОРМА (акт)'!N17=\"\",\"\",'ФОРМА (акт)'!N17)","v":""}]
[{"$f":"IF('ФОРМА (акт)'!B18=\"\",\"\",'ФОРМА (акт)'!B18)","v":""},{"$f":"IF('ФОРМА (акт)'!C18=\"\",\"\",'ФОРМА (акт)'!C18)","v":""},{"$f":"IF('ФОРМА (акт)'!E18=\"\",\"\",'ФОРМА (акт)'!E18)","v":""},{"$f":"IF('ФОРМА (акт)'!F18=\"\",\"\",'ФОРМА (акт)'!F18)","v":""},{"$f":"IF('ФОРМА (акт)'!G18=\"\",\"\",'ФОРМА (акт)'!G18)","v":""},{"$f":"IF('ФОРМА (акт)'!H18=\"\",\"\",'ФОРМА (акт)'!H18)","v":""},{"$f":"IF('ФОРМА (акт)'!I18=\"\",\"\",'ФОРМА (акт)'!I18)","v":""},{"$f":"IF('ФОРМА (акт)'!J18=\"\",\"\",'ФОРМА (акт)'!J18)","v":""},{"$f":"IF('ФОРМА (акт)'!K18=\"\",\"\",'ФОРМА (акт)'!K18)","v":""},{"$f":"IF('ФОРМА (акт)'!L18=\"\",\"\",'ФОРМА (акт)'!L18)","v":""},{"$f":"IF('ФОРМА (акт)'!M18=\"\",\"\",'ФОРМА (акт)'!M18)","v":""},{"$f":"IF('ФОРМА (акт)'!N18=\"\",\"\",'ФОРМА (акт)'!N18)","v":""}]
[{"$f":"IF('ФОРМА (акт)'!B19=\"\",\"\",'ФОРМА (акт)'!B19)","v":""},{"$f":"IF('ФОРМА (акт)'!C19=\"\",\"\",'ФОРМА (акт)'!C19)","v":""},{"$f":"IF('ФОРМА (акт)'!E19=\"\",\"\",'ФОРМА (акт)'!E19)","v":""},{"$f":"IF('ФОРМА (акт)'!F19=\"\",\"\",'ФОРМА (акт)'!F19)","v":""},{"$f":"IF('ФОРМА (акт)'!G19=\"\",\"\",'ФОРМА (акт)'!G19)","v":""},{"$f":"IF('ФОРМА (акт)'!H19=\"\",\"\",'ФОРМА (акт)'!H19)","v":""},{"$f":"IF('ФОРМА (акт)'!I19=\"\",\"\",'ФОРМА (акт)'!I19)","v":""},{"$f":"IF('ФОРМА (акт)'!J19=\"\",\"\",'ФОРМА (акт)'!J19)","v":""},{"$f":"IF('ФОРМА (акт)'!K19=\"\",\"\",'ФОРМА (акт)'!K19)","v":""},{"$f":"IF('ФОРМА (акт)'!L19=\"\",\"\",'ФОРМА (акт)'!L19)","v":""},{"$f":"IF('ФОРМА (акт)'!M19=\"\",\"\",'ФОРМА (акт)'!M19)","v":""},{"$f":"IF('ФОРМА (акт)'!N19=\"\",\"\",'ФОРМА (акт)'!N19)","v":""}]
[{"$f":"IF('ФОРМА (акт)'!B20=\"\",\"\",'ФОРМА (акт)'!B20)","v":""},{"$f":"IF('ФОРМА (акт)'!C20=\"\",\"\",'ФОРМА (акт)'!C20)","v":""},{"$f":"IF('ФОРМА (акт)'!E20=\"\",\"\",'ФОРМА (акт)'!E20)","v":""},{"$f":"IF('ФОРМА (акт)'!F20=\"\",\"\",'ФОРМА (акт)'!F20)","v":""},{"$f":"IF('ФОРМА (акт)'!G20=\"\",\"\",'ФОРМА (акт)'!G20)","v":""},{"$f":"IF('ФОРМА (акт)'!H20=\"\",\"\",'ФОРМА (акт)'!H20)","v":""},{"$f":"IF('ФОРМА (акт)'!I20=\"\",\"\",'ФОРМА (акт)'!I20)","v":""},{"$f":"IF('ФОРМА (акт)'!J20=\"\",\"\",'ФОРМА (акт)'!J20)","v":""},{"$f":"IF('ФОРМА (акт)'!K20=\"\",\"\",'ФОРМА (акт)'!K20)","v":""},{"$f":"IF('ФОРМА (акт)'!L20=\"\",\"\",'ФОРМА (акт)'!L20)","v":""},{"$f":"IF('ФОРМА (акт)'!M20=\"\",\"\",'ФОРМА (акт)'!M20)","v":""},{"$f":"IF('ФОРМА (акт)'!N20=\"\",\"\",'ФОРМА (акт)'!N20)","v":""}]
[{"$f":"IF('ФОРМА (акт)'!B21=\"\",\"\",'ФОРМА (акт)'!B21)","v":""},{"$f":"IF('ФОРМА (акт)'!C21=\"\",\"\",'ФОРМА (акт)'!C21)","v":""},{"$f":"IF('ФОРМА (акт)'!E21=\"\",\"\",'ФОРМА (акт)'!E21)","v":""},{"$f":"IF('ФОРМА (акт)'!F21=\"\",\"\",'ФОРМА (акт)'!F21)","v":""},{"$f":"IF('ФОРМА (акт)'!G21=\"\",\"\",'ФОРМА (акт)'!G21)","v":""},{"$f":"IF('ФОРМА (акт)'!H21=\"\",\"\",'ФОРМА (акт)'!H21)","v":""},{"$f":"IF('ФОРМА (акт)'!I21=\"\",\"\",'ФОРМА (акт)'!I21)","v":""},{"$f":"IF('ФОРМА (акт)'!J21=\"\",\"\",'ФОРМА (акт)'!J21)","v":""},{"$f":"IF('ФОРМА (акт)'!K21=\"\",\"\",'ФОРМА (акт)'!K21)","v":""},{"$f":"IF('ФОРМА (акт)'!L21=\"\",\"\",'ФОРМА (акт)'!L21)","v":""},{"$f":"IF('ФОРМА (акт)'!M21=\"\",\"\",'ФОРМА (акт)'!M21)","v":""},{"$f":"IF('ФОРМА (акт)'!N21=\"\",\"\",'ФОРМА (акт)'!N21)","v":""}]
[{"$f":"IF('ФОРМА (акт)'!B22=\"\",\"\",'ФОРМА (акт)'!B22)","v":""},{"$f":"IF('ФОРМА (акт)'!C22=\"\",\"\",'ФОРМА (акт)'!C22)","v":""},{"$f":"IF('ФОРМА (акт)'!E22=\"\",\"\",'ФОРМА (акт)'!E22)","v":""},{"$f":"IF('ФОРМА (акт)'!F22=\"\",\"\",'ФОРМА (акт)'!F22)","v":""},{"$f":"IF('ФОРМА (акт)'!G22=\"\",\"\",'ФОРМА (акт)'!G22)","v":""},{"$f":"IF('ФОРМА (акт)'!H22=\"\",\"\",'ФОРМА (акт)'!H22)","v":""},{"$f":"IF('ФОРМА (акт)'!I22=\"\",\"\",'ФОРМА (акт)'!I22)","v":""},{"$f":"IF('ФОРМА (акт)'!J22=\"\",\"\",'ФОРМА (акт)'!J22)","v":""},{"$f":"IF('ФОРМА (акт)'!K22=\"\",\"\",'ФОРМА (акт)'!K22)","v":""},{"$f":"IF('ФОРМА (акт)'!L22=\"\",\"\",'ФОРМА (акт)'!L22)","v":""},{"$f":"IF('ФОРМА (акт)'!M22=\"\",\"\",'ФОРМА (акт)'!M22)","v":""},{"$f":"IF('ФОРМА (акт)'!N22=\"\",\"\",'ФОРМА (акт)'!N22)","v":""}]
[{"$f":"IF('ФОРМА (акт)'!B23=\"\",\"\",'ФОРМА (акт)'!B23)","v":""},{"$f":"IF('ФОРМА (акт)'!C23=\"\",\"\",'ФОРМА (акт)'!C23)","v":""},{"$f":"IF('ФОРМА (акт)'!E23=\"\",\"\",'ФОРМА (акт)'!E23)","v":""},{"$f":"IF('ФОРМА (акт)'!F23=\"\",\"\",'ФОРМА (акт)'!F23)","v":""},{"$f":"IF('ФОРМА (акт)'!G23=\"\",\"\",'ФОРМА (акт)'!G23)","v":""},{"$f":"IF('ФОРМА (акт)'!H23=\"\",\"\",'ФОРМА (акт)'!H23)","v":""},{"$f":"IF('ФОРМА (акт)'!I23=\"\",\"\",'ФОРМА (акт)'!I23)","v":""},{"$f":"IF('ФОРМА (акт)'!J23=\"\",\"\",'ФОРМА (акт)'!J23)","v":""},{"$f":"IF('ФОРМА (акт)'!K23=\"\",\"\",'ФОРМА (акт)'!K23)","v":""},{"$f":"IF('ФОРМА (акт)'!L23=\"\",\"\",'ФОРМА (акт)'!L23)","v":""},{"$f":"IF('ФОРМА (акт)'!M23=\"\",\"\",'ФОРМА (акт)'!M23)","v":""},{"$f":"IF('ФОРМА (акт)'!N23=\"\",\"\",'ФОРМА (акт)'!N23)","v":""}]
[{"$f":"IF('ФОРМА (акт)'!B24=\"\",\"\",'ФОРМА (акт)'!B24)","v":""},{"$f":"IF('ФОРМА (акт)'!C24=\"\",\"\",'ФОРМА (акт)'!C24)","v":""},{"$f":"IF('ФОРМА (акт)'!E24=\"\",\"\",'ФОРМА (акт)'!E24)","v":""},{"$f":"IF('ФОРМА (акт)'!F24=\"\",\"\",'ФОРМА (акт)'!F24)","v":""},{"$f":"IF('ФОРМА (акт)'!G24=\"\",\"\",'ФОРМА (акт)'!G24)","v":""},{"$f":"IF('ФОРМА (акт)'!H24=\"\",\"\",'ФОРМА (акт)'!H24)","v":""},{"$f":"IF('ФОРМА (акт)'!I24=\"\",\"\",'ФОРМА (акт)'!I24)","v":""},{"$f":"IF('ФОРМА (акт)'!J24=\"\",\"\",'ФОРМА (акт)'!J24)","v":""},{"$f":"IF('ФОРМА (акт)'!K24=\"\",\"\",'ФОРМА (акт)'!K24)","v":""},{"$f":"IF('ФОРМА (акт)'!L24=\"\",\"\",'ФОРМА (акт)'!L24)","v":""},{"$f":"IF('ФОРМА (акт)'!M24=\"\",\"\",'ФОРМА (акт)'!M24)","v":""},{"$f":"IF('ФОРМА (акт)'!N24=\"\",\"\",'ФОРМА (акт)'!N24)","v":""}]
[{"$f":"IF('ФОРМА (акт)'!B25=\"\",\"\",'ФОРМА (акт)'!B25)","v":""},{"$f":"IF('ФОРМА (акт)'!C25=\"\",\"\",'ФОРМА (акт)'!C25)","v":""},{"$f":"IF('ФОРМА (акт)'!E25=\"\",\"\",'ФОРМА (акт)'!E25)","v":""},{"$f":"IF('ФОРМА (акт)'!F25=\"\",\"\",'ФОРМА (акт)'!F25)","v":""},{"$f":"IF('ФОРМА (акт)'!G25=\"\",\"\",'ФОРМА (акт)'!G25)","v":""},{"$f":"IF('ФОРМА (акт)'!H25=\"\",\"\",'ФОРМА (акт)'!H25)","v":""},{"$f":"IF('ФОРМА (акт)'!I25=\"\",\"\",'ФОРМА (акт)'!I25)","v":""},{"$f":"IF('ФОРМА (акт)'!J25=\"\",\"\",'ФОРМА (акт)'!J25)","v":""},{"$f":"IF('ФОРМА (акт)'!K25=\"\",\"\",'ФОРМА (акт)'!K25)","v":""},{"$f":"IF('ФОРМА (акт)'!L25=\"\",\"\",'ФОРМА (акт)'!L25)","v":""},{"$f":"IF('ФОРМА (акт)'!M25=\"\",\"\",'ФОРМА (акт)'!M25)","v":""},{"$f":"IF('ФОРМА (акт)'!N25=\"\",\"\",'ФОРМА (акт)'!N25)","v":""}]
["Итого (час.)",null,{"$f":"IF(SUM(C13:C27)=0,\"\",SUM(C13:C27))","v":""},{"$f":"IF(SUM(D13:D27)=0,\"\",SUM(D13:D27))","v":""},"","","","","","","",{"$f":"SUM(L13:L27)","v":0}]
["Цена за ед. оказываемых услуг, руб.",null,{"$f":"'ФОРМА (договор)'!D54","v":0}]
["Сумма вознаграждения, включая НДФЛ, руб.",null,{"$f":"ROUND(L28*'ФОРМА (договор)'!D51,2)","v":0}]
["Общая стоимость услуг, руб.",null,{"$f":"ROUND('ФОРМА (договор)'!D54*АКТ!L28,2)","v":0}]
[]
["1. Заказчик оплачивает вознаграждение за оказанные услуги в размере"]
[{"$f":"'222'!R6","v":0},{"$f":"'222'!U6","v":"(Нол) руб. 00 коп."}]
["удержав НДФЛ по ставке 13% на основании п. 1, 2, 4, 6 ст. 226 НК РФ в размере",null,null,null,{"$f":"'222'!R7","v":0},null,"руб."]
[]
["2. Взносы в государственные внебюджетные фонды, перечисляемые Заказчиком в соответствии с действующим законодательством Российской Федерации по договору с физическим лицом в соответствии с законодательством РФ в размере"]
[{"$f":"'222'!R8","v":0},"руб."]
["3. Настоящий акт составлен и подписан в 2 экземплярах, имеющих одинаковую юридическую силу, по одному экземпляру для каждой из сторон."]
["4. Источником финансирования оказанных услуг являются внебюджетные средства. Смета № ________________."]
[{"$f":"\"5. \"&'ФОРМА (договор)'!C29","v":"5. "}]
[]
[null,"ЗАКАЗЧИК",null,null,null,"ИСПОЛНИТЕЛЬ"]
[]
["Первый проректор, проректор по УР СПбГУПТД"]
[]
["___________________________ А.Е. Рудин",null,null,null,{"$f":"\"________________ \"&LEFT('ФОРМА (договор)'!E4,1)&\".\"&LEFT('ФОРМА (договор)'!F4,1)&\". \"&'ФОРМА (договор)'!D4","v":"________________ .. "}]

{"sheet":"Кафедры","index":8,"n_rows":57,"n_cols":9,"rows_kept":57,"cut":false,"hidden":true,"merged":[]}
[null,"Подразделение","Иерархия",null,"№"]
[{"$f":"IF(ISNUMBER(SEARCH($I$3,B2)),MAX($A$1:A1)+1,0)","v":0},"кафедра Книгоиздания и книжной торговли","Высшая школа печати и медиатехнологий",null,1,{"$f":"VLOOKUP(E2,A:B,2,FALSE)","v":{"$error":"#N/A"}},null,null,"Поиск"]
[{"$f":"IF(ISNUMBER(SEARCH($I$3,B3)),MAX($A$1:A2)+1,0)","v":0},"кафедра Гуманитарных и социально-экономических дисциплин","Высшая школа печати и медиатехнологий",null,2,{"$f":"VLOOKUP(E3,A:B,2,FALSE)","v":{"$error":"#N/A"}},null,null,{"$f":"'ФОРМА (договор)'!C29","v":0}]
[{"$f":"IF(ISNUMBER(SEARCH($I$3,B4)),MAX($A$1:A3)+1,0)","v":0},"кафедра Рекламы","Высшая школа печати и медиатехнологий",null,3,{"$error":"#N/A"}]
[{"$f":"IF(ISNUMBER(SEARCH($I$3,B5)),MAX($A$1:A4)+1,0)","v":0},"кафедра Технического перевода и профессиональных коммуникаций","Высшая школа печати и медиатехнологий",null,4,{"$error":"#N/A"}]
[{"$f":"IF(ISNUMBER(SEARCH($I$3,B6)),MAX($A$1:A5)+1,0)","v":0},"кафедра Графики","Высшая школа печати и медиатехнологий",null,5,{"$error":"#N/A"}]
[{"$f":"IF(ISNUMBER(SEARCH($I$3,B7)),MAX($A$1:A6)+1,0)","v":0},"кафедра Журналистики и медиатехнологий средств массовой информации","Высшая школа печати и медиатехнологий",null,6,{"$error":"#N/A"}]
[{"$f":"IF(ISNUMBER(SEARCH($I$3,B8)),MAX($A$1:A7)+1,0)","v":0},"кафедра Полиграфического оборудования и управления","Высшая школа печати и медиатехнологий",null,7,{"$error":"#N/A"}]
[{"$f":"IF(ISNUMBER(SEARCH($I$3,B9)),MAX($A$1:A8)+1,0)","v":0},"кафедра Технологий полиграфического производства","Высшая школа печати и медиатехнологий",null,8,{"$error":"#N/A"}]
[{"$f":"IF(ISNUMBER(SEARCH($I$3,B10)),MAX($A$1:A9)+1,0)","v":0},"кафедра Информационных и управляющих систем","Высшая школа печати и медиатехнологий",null,9,{"$error":"#N/A"}]
[{"$f":"IF(ISNUMBER(SEARCH($I$3,B11)),MAX($A$1:A10)+1,0)","v":0},"кафедра Менеджмента","Институт бизнес-коммуникаций",null,10,{"$error":"#N/A"}]
[{"$f":"IF(ISNUMBER(SEARCH($I$3,B12)),MAX($A$1:A11)+1,0)","v":0},"кафедра Туристского бизнеса","Институт бизнес-коммуникаций",null,11,{"$error":"#N/A"}]
[{"$f":"IF(ISNUMBER(SEARCH($I$3,B13)),MAX($A$1:A12)+1,0)","v":0},"кафедра Истории и теории дизайна и медиакоммуникаций","Институт бизнес-коммуникаций",null,12,{"$error":"#N/A"}]
[{"$f":"IF(ISNUMBER(SEARCH($I$3,B14)),MAX($A$1:A13)+1,0)","v":0},"кафедра Рекламы и связей с общественностью","Институт бизнес-коммуникаций",null,13,{"$error":"#N/A"}]
[{"$f":"IF(ISNUMBER(SEARCH($I$3,B15)),MAX($A$1:A14)+1,0)","v":0},"кафедра Бренд-коммуникаций","Институт бизнес-коммуникаций",null,14,{"$error":"#N/A"}]
[{"$f":"IF(ISNUMBER(SEARCH($I$3,B16)),MAX($A$1:A15)+1,0)","v":0},"кафедра Дизайна рекламы","Институт графического дизайна",null,15,{"$error":"#N/A"}]
[{"$f":"IF(ISNUMBER(SEARCH($I$3,B17)),MAX($A$1:A16)+1,0)","v":0},"кафедра Графического дизайна в арт-пространстве","Институт графического дизайна",null,16,{"$error":"#N/A"}]
[{"$f":"IF(ISNUMBER(SEARCH($I$3,B18)),MAX($A$1:A17)+1,0)","v":0},"кафедра Истории и теории искусства","Институт дизайна и искусств",null,17,{"$error":"#N/A"}]
[{"$f":"IF(ISNUMBER(SEARCH($I$3,B19)),MAX($A$1:A18)+1,0)","v":0},"кафедра Монументального искусства","Институт дизайна и искусств",null,18,{"$error":"#N/A"}]
[{"$f":"IF(ISNUMBER(SEARCH($I$3,B20)),MAX($A$1:A19)+1,0)","v":0},"кафедра Дизайна костюма","Институт дизайна костюма",null,19,{"$error":"#N/A"}]
[{"$f":"IF(ISNUMBER(SEARCH($I$3,B21)),MAX($A$1:A20)+1,0)","v":0},"кафедра Живописи и рисунка","Институт дизайна костюма",null,20,{"$error":"#N/A"}]
[{"$f":"IF(ISNUMBER(SEARCH($I$3,B22)),MAX($A$1:A21)+1,0)","v":0},"кафедра Дизайна пространственной среды","Институт дизайна пространственной среды",null,21,{"$error":"#N/A"}]
[{"$f":"IF(ISNUMBER(SEARCH($I$3,B23)),MAX($A$1:A22)+1,0)","v":0},"кафедра Дизайна интерьера и оборудования","Институт дизайна пространственной среды",null,22,{"$error":"#N/A"}]
[{"$f":"IF(ISNUMBER(SEARCH($I$3,B24)),MAX($A$1:A23)+1,0)","v":0},"кафедра Автоматизации производственных процессов","Институт информационных технологий и автоматизации",null,23,{"$error":"#N/A"}]
[{"$f":"IF(ISNUMBER(SEARCH($I$3,B25)),MAX($A$1:A24)+1,0)","v":0},"кафедра Машиноведения","Институт информационных технологий и автоматизации",null,24,{"$error":"#N/A"}]
[{"$f":"IF(ISNUMBER(SEARCH($I$3,B26)),MAX($A$1:A25)+1,0)","v":0},"кафедра Интеллектуальных систем и защиты информации","Институт информационных технологий и автоматизации",null,25,{"$error":"#N/A"}]
[{"$f":"IF(ISNUMBER(SEARCH($I$3,B27)),MAX($A$1:A26)+1,0)","v":0},"кафедра Информационных технологий","Институт информационных технологий и автоматизации",null,26,{"$error":"#N/A"}]
[{"$f":"IF(ISNUMBER(SEARCH($I$3,B28)),MAX($A$1:A27)+1,0)","v":0},"кафедра Инженерного материаловедения и метрологии","Институт информационных технологий и автоматизации",null,27,{"$error":"#N/A"}]
[{"$f":"IF(ISNUMBER(SEARCH($I$3,B29)),MAX($A$1:A28)+1,0)","v":0},"кафедра Цифровых и аддитивных технологий","Институт информационных технологий и автоматизации",null,28,{"$error":"#N/A"}]
[{"$f":"IF(ISNUMBER(SEARCH($I$3,B30)),MAX($A$1:A29)+1,0)","v":0},"кафедра Декоративно-прикладного искусства и народных промыслов","Институт прикладного искусства",null,29,{"$error":"#N/A"}]
[{"$f":"IF(ISNUMBER(SEARCH($I$3,B31)),MAX($A$1:A30)+1,0)","v":0},"кафедра Технологии художественной обработки материалов и ювелирных изделий","Институт прикладного искусства",null,30,{"$error":"#N/A"}]
[{"$f":"IF(ISNUMBER(SEARCH($I$3,B32)),MAX($A$1:A31)+1,0)","v":0},"кафедра Инженерной химии и промышленной экологии","Институт прикладной химии и экологии",null,31,{"$error":"#N/A"}]
[{"$f":"IF(ISNUMBER(SEARCH($I$3,B33)),MAX($A$1:A32)+1,0)","v":0},"кафедра Теоретической и прикладной химии","Институт прикладной химии и экологии",null,32,{"$error":"#N/A"}]
[{"$f":"IF(ISNUMBER(SEARCH($I$3,B34)),MAX($A$1:A33)+1,0)","v":0},"кафедра Наноструктурных волокнистых и композиционных материалов","Институт прикладной химии и экологии",null,33,{"$error":"#N/A"}]
[{"$f":"IF(ISNUMBER(SEARCH($I$3,B35)),MAX($A$1:A34)+1,0)","v":0},"кафедра Химических технологий имени профессора А.А. Хархарова","Институт прикладной химии и экологии",null,34,{"$error":"#N/A"}]
[{"$f":"IF(ISNUMBER(SEARCH($I$3,B36)),MAX($A$1:A35)+1,0)","v":0},"кафедра Конструирования и технологии швейных изделий","Институт текстиля и моды",null,35,{"$error":"#N/A"}]
[{"$f":"IF(ISNUMBER(SEARCH($I$3,B37)),MAX($A$1:A36)+1,0)","v":0},"кафедра Материаловедения и товарной экспертизы","Институт текстиля и моды",null,36,{"$error":"#N/A"}]
[{"$f":"IF(ISNUMBER(SEARCH($I$3,B38)),MAX($A$1:A37)+1,0)","v":0},"кафедра Технологии и художественного проектирования трикотажа","Институт текстиля и моды",null,37,{"$error":"#N/A"}]
[{"$f":"IF(ISNUMBER(SEARCH($I$3,B39)),MAX($A$1:A38)+1,0)","v":0},"кафедра Технологии и проектирования текстильных изделий","Институт текстиля и моды",null,38,{"$error":"#N/A"}]
[{"$f":"IF(ISNUMBER(SEARCH($I$3,B40)),MAX($A$1:A39)+1,0)","v":0},"кафедра Конструирования и технологии изделий из кожи","Институт текстиля и моды",null,39,{"$error":"#N/A"}]
[{"$f":"IF(ISNUMBER(SEARCH($I$3,B41)),MAX($A$1:A40)+1,0)","v":0},"кафедра Экономической теории","Институт экономики и социальных технологий",null,40,{"$error":"#N/A"}]
[{"$f":"IF(ISNUMBER(SEARCH($I$3,B42)),MAX($A$1:A41)+1,0)","v":0},"кафедра Физического воспитания","Институт экономики и социальных технологий",null,41,{"$error":"#N/A"}]
[{"$f":"IF(ISNUMBER(SEARCH($I$3,B43)),MAX($A$1:A42)+1,0)","v":0},"кафедра Физики","Институт экономики и социальных технологий",null,42,{"$error":"#N/A"}]
[{"$f":"IF(ISNUMBER(SEARCH($I$3,B44)),MAX($A$1:A43)+1,0)","v":0},"кафедра Экономики и финансов","Институт экономики и социальных технологий",null,43,{"$error":"#N/A"}]
[{"$f":"IF(ISNUMBER(SEARCH($I$3,B45)),MAX($A$1:A44)+1,0)","v":0},"кафедра Бухгалтерского учета и аудита","Институт экономики и социальных технологий",null,44,{"$error":"#N/A"}]
[{"$f":"IF(ISNUMBER(SEARCH($I$3,B46)),MAX($A$1:A45)+1,0)","v":0},"кафедра Математики","Институт экономики и социальных технологий",null,45,{"$error":"#N/A"}]
[{"$f":"IF(ISNUMBER(SEARCH($I$3,B47)),MAX($A$1:A46)+1,0)","v":0},"кафедра Педагогики и психологии профессионального образования","Институт экономики и социальных технологий",null,46,{"$error":"#N/A"}]
[{"$f":"IF(ISNUMBER(SEARCH($I$3,B48)),MAX($A$1:A47)+1,0)","v":0},"кафедра Русского языка и литературы","Институт экономики и социальных технологий",null,47,{"$error":"#N/A"}]
[{"$f":"IF(ISNUMBER(SEARCH($I$3,B49)),MAX($A$1:A48)+1,0)","v":0},"кафедра Социальной работы и права","Институт экономики и социальных технологий",null,48,{"$error":"#N/A"}]
[{"$f":"IF(ISNUMBER(SEARCH($I$3,B50)),MAX($A$1:A49)+1,0)","v":0},"кафедра Общественных наук","Институт экономики и социальных технологий",null,49,{"$error":"#N/A"}]
[{"$f":"IF(ISNUMBER(SEARCH($I$3,B51)),MAX($A$1:A50)+1,0)","v":0},"кафедра Иностранных языков в профессиональной деятельности","Институт экономики и социальных технологий",null,50,{"$error":"#N/A"}]
[{"$f":"IF(ISNUMBER(SEARCH($I$3,B52)),MAX($A$1:A51)+1,0)","v":0},"кафедра Международных коммуникаций","Институт экономики и социальных технологий",null,51,{"$error":"#N/A"}]
[{"$f":"IF(ISNUMBER(SEARCH($I$3,B53)),MAX($A$1:A52)+1,0)","v":0},"Региональный институт непрерывного профессионального образования",null,null,52,{"$error":"#N/A"}]
[{"$f":"IF(ISNUMBER(SEARCH($I$3,B54)),MAX($A$1:A53)+1,0)","v":0},"Институт дополнительного профессионального образования",null,null,53,{"$error":"#N/A"}]
[{"$f":"IF(ISNUMBER(SEARCH($I$3,B55)),MAX($A$1:A54)+1,0)","v":0},"Институт Федеральной службы по труду и занятости",null,null,54,{"$error":"#N/A"}]
[{"$f":"IF(ISNUMBER(SEARCH($I$3,B56)),MAX($A$1:A55)+1,0)","v":0},"Колледж технологии, моделирования и управления",null,null,55,{"$error":"#N/A"}]
[{"$f":"IF(ISNUMBER(SEARCH($I$3,B57)),MAX($A$1:A56)+1,0)","v":0},"Инженерная школа одежды (колледж) СПбГУПТД",null,null,56,{"$error":"#N/A"}]

{"sheet":"222","index":9,"n_rows":16,"n_cols":21,"rows_kept":16,"cut":false,"hidden":true,"merged":[[0,16,0,17]]}
[null,"месяц",null,"Месяц","Даты актов",null,null,null,null,null,null,null,"Единицы измерения",null,{"$f":"'ФОРМА (договор)'!D4&\" \"","v":" "},null,"Расчет нового акта"]
["Январь","января","январе",{"$f":"'ФОРМА (договор)'!B62","v":"Сентябрь"},{"$f":"'ФОРМА (договор)'!C62","v":"2025-09-30"},"сентябре",{"$f":"TEXT(E2,\"гггг\")","v":"2025"},null,null,null,null,null,null,null,{"$f":"LEFT('ФОРМА (договор)'!E4,1)&\".\"","v":"."},null,"Цена за ед., руб.",{"$f":"'ФОРМА (договор)'!D54","v":0}]
["Февраль","февраля","феврале",{"$f":"'ФОРМА (договор)'!B63","v":"Октябрь"},{"$f":"'ФОРМА (договор)'!C63","v":"2025-10-31"},"октябре",{"$f":"TEXT(E3,\"гггг\")","v":"2025"},null,null,null,null,null,"час",null,{"$f":"LEFT('ФОРМА (договор)'!F4,1)&\".\"","v":"."},null,"Сумма вознаграждения, включая НДФЛ, руб.",{"$f":"ROUND('ФОРМА (акт)'!N26*'ФОРМА (договор)'!D51,2)","v":0}]
["Март","марта","марте",{"$f":"'ФОРМА (договор)'!B64","v":"Ноябрь"},{"$f":"'ФОРМА (договор)'!C64","v":"2025-11-28"},"ноябре","2025",null,null,null,null,null,"усл.ед.",null,null,null,"Взносы в государственные внебюджетные фонды, руб.",{"$f":"ROUND(R3*0.3,2)","v":0}]
["Апрель","апреля","апреле",{"$f":"'ФОРМА (договор)'!B65","v":"Декабрь"},{"$f":"'ФОРМА (договор)'!C65","v":"2025-12-26"},"декабре","2025",null,null,null,null,null,null,null,null,null,"Общая стоимость услуг, руб.",{"$f":"ROUND('ФОРМА (акт)'!N26*'ФОРМА (договор)'!D54,2)","v":0}]
["Май","мая","мае",{"$f":"'ФОРМА (договор)'!B66","v":"Январь"},{"$f":"'ФОРМА (договор)'!C66","v":"2026-01-30"},"январе","2026",{"$f":"'ФОРМА (договор)'!D57","v":0},"Сумма прописью",{"$f":"'ФОРМА (договор)'!D55","v":0},"Сумма прописью",null,null,null,null,null,"1. Заказчик оплачивает вознаграждение за оказанные услуги в размере",{"$f":"ROUND(R3-R7,2)","v":0},{"$f":"СУММАПРОПИСЬЮ('222'!R6)","v":"ноль"},{"$f":"\"(\"&UPPER(LEFT(S6,1))&MID(S6,2,LEN(S6)-2)&\")\"","v":"(Нол)"},{"$f":"T6&\" руб. \"&TEXT((R6-INT(R6))*100,\"00\")&\" коп.\"","v":"(Нол) руб. 00 коп."}]
["Июнь","июня","июне",{"$f":"'ФОРМА (договор)'!B67","v":"Февраль"},{"$f":"'ФОРМА (договор)'!C67","v":"2026-02-27"},"феврале","2026",null,{"$f":"СУММАПРОПИСЬЮ('222'!H6)","v":"ноль"},null,{"$f":"СУММАПРОПИСЬЮ('222'!J6)","v":"ноль"},null,null,null,null,null,"удержав НДФЛ по ставке 13% на основании п. 1, 2, 4, 6 ст. 226 НК РФ в размере",{"$f":"ROUND(R3*0.13,0)","v":0}]
["Июль","июля","июле",{"$f":"'ФОРМА (договор)'!B68","v":"Март"},{"$f":"'ФОРМА (договор)'!C68","v":"2026-03-31"},"марте","2026",null,{"$f":"\"(\"&UPPER(LEFT(I7,1))&MID(I7,2,LEN(I7)-2)&\")\"","v":"(Нол)"},null,{"$f":"\"(\"&UPPER(LEFT(K7,1))&MID(K7,2,LEN(K7)-2)&\")\"","v":"(Нол)"},null,null,null,null,null,"2. Взносы в государственные внебюджетные фонды, перечисляемые Заказчиком в соответствии с действующим законодательством Российской Федерации по договору с физическим лицом в соответствии с законодательством РФ в размере",{"$f":"R4","v":0}]
["Август","августа","августе",{"$f":"'ФОРМА (договор)'!B69","v":"Апрель"},{"$f":"'ФОРМА (договор)'!C69","v":"2026-04-30"},"апреле","2026",null,{"$f":"I8&\" руб. \"&TEXT((H6-INT(H6))*100,\"00\")&\" коп.\"","v":"(Нол) руб. 00 коп."},null,{"$f":"K8&\" руб. \"&TEXT((J6-INT(J6))*100,\"00\")&\" коп.\"","v":"(Нол) руб. 00 коп."}]
["Сентябрь","сентября","сентябре",{"$f":"'ФОРМА (договор)'!B70","v":"Май"},{"$f":"'ФОРМА (договор)'!C70","v":"2026-05-29"},"мае","2026"]
["Октябрь","октября","октябре",{"$f":"'ФОРМА (договор)'!B71","v":"Июнь"},{"$f":"'ФОРМА (договор)'!C71","v":"2026-07-06"},"июне","2026",null,null,{"$f":"'ФОРМА (договор)'!D56","v":0},"Сумма прописью"]
["Ноябрь","ноября","ноябре",null,null,null,null,null,null,null,{"$f":"СУММАПРОПИСЬЮ('222'!J11)","v":"ноль"}]
["Декабрь","декабря","декабре",null,null,null,null,null,null,null,{"$f":"\"(\"&UPPER(LEFT(K12,1))&MID(K12,2,LEN(K12)-2)&\")\"","v":"(Нол)"}]
[null,null,null,null,null,null,null,null,null,null,{"$f":"K13&\" руб. \"&TEXT((J11-INT(J11))*100,\"00\")&\" коп.\"","v":"(Нол) руб. 00 коп."}]
[]
[null,null,null,null,null,null,null,null,{"$f":"'ФОРМА (договор)'!D51","v":0}]

{"sheet":"Лист1","index":10,"n_rows":1,"n_cols":1,"rows_kept":1,"cut":false,"hidden":true,"merged":[]}
["* Включает сумму вознаграждения по договору, включая НДФЛ (13%), который Заказчик, являясь налоговым агентом, удерживает и перечисляет в бюджет, а также взносы в государственные внебюджетные фонды, перечисляемые Заказчиком в соответствии с действующим законодательством Российской Федерации (30%)"]